Workbook

Sheet 1
H1: 2015 | I1: року | AF1: D:\Звіти за 2015 рік\ | AK1: Прокуратура Бахмацького району | AN1: 3 місяці
A2: РОЗДІЛ 1. Представництво інтересів громадян та держави в судах | N2: РОЗДІЛ 1. Представництво інтересів громадян та держави в судах | AK2: Прокуратура Бобровицького району | AN2: 6 місяців
A3: Таблиця 1 | D3: рядок | E3: Досудове врегулювання спорів | G3: Кількість справ, що перебувають у провадженні суду | I3: Сума у справах, за якими судом відкрито провадження з початку звітного року (тис.грн.) | J3: Розгляд справи судом | M3: Сума за рішеннями, які передано на примусове виконання (тис.грн.) | N3: Таблиця 1 | Q3: рядок | R3: Кількість справ у яких забезпечено участь прокурора | S3: Сума за рішеннями прийнятими на користь сторони, в інтересах якої прокурор вступив у справу (тис.грн.) | T3: Ініціювання перегляду судових рішень | AC3: Кількість громадян права яких поновлено у судовому порядку | AD3: Площа повернутих земель та незаконне надання яких попереджено | AE3: Розпочато кримінальних проваджень | AK3: Прокуратура Борзнянського району | AN3: 9 місяців
E4: Кількість направлених звернень | F4: Кількість позовів (заяв, скарг, подань), внесених у разі неврегулювання спору | J4: Задоволено позовів, заяв, скарг, подань | L4: Сума, яку добровільно відшкодовано за закритими справами (тис.грн.) | T4: Апеляційні скарги | V4: Касаційні скарги | X4: Заяви до Верховного Суду України | Z4: Заяви про перегляд судових рішень за нововиявленими обставинами | AB4: Сума за рішеннями, скасованими за скаргами, заявами прокурора (тис.грн.) | AK4: Прокуратура Варвинського району | AN4: 12 місяців
G5: Усього | H5: Сума, на яку заявлено позови, заяви у цих справах (тис.грн.) | J5: Усього | K5: Сума по них (тис.грн.) | T5: Розглянуто | U5: Задоволено | V5: Розглянуто | W5: Задоволено | X5: Розглянуто | Y5: Задоволено | Z5: Розглянуто | AA5: Задоволено | AK5: Прокуратура Городнянського району | AN5: 3
A6: а | D6: б | E6: 1 | F6: 2 | G6: 3 | H6: 4 | I6: 5 | J6: 6 | K6: 7 | L6: 8 | M6: 9 | N6: а | Q6: б | R6: 10 | S6: 11 | T6: 12 | U6: 13 | V6: 14 | W6: 15 | X6: 16 | Y6: 17 | Z6: 18 | AA6: 19 | AB6: 20 | AC6: 21 | AD6: 22 | AE6: 23 | AK6: Прокуратура Ічнянського району | AN6: 3
A7: УСЬОГО | D7: 1 | G7: 67 | H7: 106405 | I7: 354656 | J7: 620 | K7: 210545 | L7: 10787 | M7: 10228 | N7: УСЬОГО | Q7: 1 | R7: 774 | S7: 1305 | T7: 40 | U7: 27 | V7: 6 | W7: 4 | AB7: 922 | AC7: 153 | AD7: 10513.53 | AE7: 84 | AK7: Прокуратура Козелецького району | AN7: 3
A8: з них: | B8: у цивільному судочинстві | D8: 2 | E8: x | F8: x | G8: 41 | H8: 43471 | I8: 86069 | J8: 314 | K8: 39642 | L8: 2347 | M8: 2930 | N8: з них: | O8: у цивільному судочинстві | Q8: 2 | R8: 494 | S8: 214 | T8: 17 | U8: 13 | V8: 3 | W8: 2 | AB8: 527 | AC8: 122 | AD8: 888.53 | AE8: x | AK8: Прокуратура Коропського району
B9: у господарському судочистві | D9: 3 | E9: x | F9: x | G9: 17 | H9: 60682 | I9: 134548 | J9: 108 | K9: 54702 | L9: 6587 | M9: 2772 | O9: у господарському судочистві | Q9: 3 | R9: 148 | S9: 1090 | T9: 11 | U9: 7 | V9: 3 | W9: 2 | AB9: 383 | AC9: 2 | AD9: 844 | AE9: x | AK9: Прокуратура Корюківського району
B10: в адміністративному судочинстві | D10: 4 | E10: x | F10: x | G10: 4 | H10: 2217 | I10: 128205 | J10: 143 | K10: 115920 | L10: 1838 | M10: 4411 | O10: в адміністративному судочинстві | Q10: 4 | R10: 132 | S10: 1 | T10: 12 | U10: 7 | AB10: 12 | AC10: 29 | AD10: 8781 | AE10: x | AK10: Прокуратура Куликівського району
A11: В інтересах громадян | D11: 5 | G11: 5 | I11: 14405 | J11: 154 | K11: 12913 | L11: 1305 | M11: 1080 | N11: В інтересах громадян | Q11: 5 | R11: 274 | S11: 14 | T11: 9 | U11: 7 | AB11: 303 | AC11: 153 | AD11: 58 | AE11: 7 | AK11: Прокуратура Менського району
A12: На захист інтересів держави | D12: 6 | G12: 57 | H12: 106370 | I12: 334367 | J12: 406 | K12: 197301 | L12: 9467 | M12: 8907 | N12: На захист інтересів держави | Q12: 6 | R12: 481 | S12: 1291 | T12: 31 | U12: 20 | V12: 6 | W12: 4 | AB12: 619 | AD12: 10451.53 | AE12: 75 | AK12: Ніжинського міжрайонна прокуратура
A13: з них: | B13: У бюджетній сфері | D13: 7 | G13: 3 | H13: 11063 | I13: 27371 | J13: 58 | K13: 4127 | L13: 161 | M13: 1543 | N13: з них: | O13: У бюджетній сфері | Q13: 7 | R13: 46 | S13: 16 | T13: 3 | U13: 1 | AE13: 22 | AK13: Прокуратура Новгород-Сіверського району
B14: З питань державної та комунальної власності | D14: 8 | G14: 19 | H14: 20146 | I14: 37694 | J14: 67 | K14: 15272 | L14: 389 | M14: 2292 | O14: З питань державної та комунальної власності | Q14: 8 | R14: 108 | S14: 94 | T14: 6 | U14: 4 | V14: 3 | W14: 2 | AD14: 43.53 | AE14: 8 | AK14: Прокуратура Носівського району
B15: У сфері охорони навколишнього природного середовища | D15: 9 | G15: 4 | H15: 350 | I15: 1421 | J15: 31 | K15: 1279 | L15: 82 | M15: 313 | O15: У сфері охорони навколишнього природного середовища | Q15: 9 | R15: 29 | T15: 2 | U15: 2 | AB15: 369 | AE15: 21 | AK15: Прилуцька міжрайонна прокуратура
A16: з рядка 1: | B16: Про відшкодування шкоди, заподіяної кримінальними правопорушеннями | D16: 10 | G16: 7 | H16: 43 | I16: 6139 | J16: 76 | K16: 484 | L16: 19 | M16: 292 | N16: з рядка 1: | O16: Про відшкодування шкоди, заподіяної кримінальними правопорушеннями | Q16: 10 | R16: 25 | S16: 76 | AK16: Прокуратура Ріпкинська району
B17: у т.ч. | C17: у кримінальному судочинстві | D17: 11 | E17: x | F17: x | G17: 5 | H17: 35 | I17: 5834 | J17: 57 | K17: 281 | L17: 15 | M17: 115 | O17: у т.ч. | P17: у кримінальному судочинстві | Q17: 11 | R17: x | S17: x | AK17: Прокуратура Семенівського району
C18: з ознаками корупції | D18: 12 | G18: 1 | H18: 11 | I18: 11 | P18: з ознаками корупції | Q18: 12 | AK18: Прокуратура Сосницького району
C19: що вчинені неповнолітніми | D19: 13 | P19: що вчинені неповнолітніми | Q19: 13 | AK19: Прокуратура Срібнянського району
B20: З питань виконання судових рішень | D20: 14 | I20: 50 | J20: 3 | K20: 50 | M20: 126 | O20: З питань виконання судових рішень | Q20: 14 | R20: 19 | AD20: 4 | AE20: 2 | AK20: Прокуратура Талалаївського району
B21: З питань захисту інтересів дітей | D21: 15 | G21: 1 | H21: 1 | I21: 692 | J21: 58 | K21: 587 | L21: 61 | M21: 441 | O21: З питань захисту інтересів дітей | Q21: 15 | R21: 202 | T21: 5 | U21: 5 | AB21: 38 | AC21: 50 | AE21: 5 | AK21: Прокуратура Чернігівського району
B22: у т.ч.: | C22: щодо інтересів держави у сфері охорони дитинства | D22: 16 | G22: 1 | H22: 1 | I22: 145 | J22: 10 | K22: 80 | L22: 61 | M22: 219 | O22: у т.ч.: | P22: щодо інтересів держави у сфері охорони дитинства | Q22: 16 | R22: 12 | T22: 2 | U22: 2 | AB22: 14 | AE22: 3 | AK22: Прокуратура м.Чернігова
B23: У воєнній сфері | D23: 17 | O23: У воєнній сфері | Q23: 17 | AK23: Прокуратура Щорського району
B24: у т.ч.: | C24: у сфері оборонно промислового комплексу | D24: 18 | O24: у т.ч.: | P24: у сфері оборонно промислового комплексу | Q24: 18 | AK24: Апарат прокуратури Чернігівської області
B25: З питань земельних відносин | D25: 19 | G25: 30 | H25: 46405 | I25: 224386 | J25: 184 | K25: 172324 | L25: 6722 | M25: 1096 | O25: З питань земельних відносин | Q25: 19 | R25: 198 | T25: 12 | U25: 9 | AB25: 212 | AC25: 6 | AD25: 10513.03 | AE25: 15 | AK25: Прокуратура Чернігівської області
B26: у т.ч.: | C26: в інтересах держави | D26: 20 | G26: 29 | H26: 46405 | I26: 212826 | J26: 168 | K26: 160895 | L26: 6680 | M26: 1051 | O26: у т.ч.: | P26: в інтересах держави | Q26: 20 | R26: 183 | T26: 11 | U26: 8 | AB26: 212 | AD26: 10455.03 | AE26: 13 | AK26: 25
A27: Контрольний рядок | D27: 21 | E27: =SUM(E7:E26) -> 0 | F27: =SUM(F7:F26) -> 0 | G27: 291 | H27: 443605 | I27: 1568819 | J27: 2457 | K27: 986402 | L27: 46521 | M27: 37816 | N27: Контрольний рядок | Q27: 21 | R27: =SUM(R7:R26) -> 3125 | S27: =SUM(S7:S26) -> 4101 | T27: 161 | U27: 112 | V27: 21 | W27: 14 | X27: 0 | Y27: 0 | Z27: 0 | AA27: 0 | AB27: 3611 | AC27: 515 | AD27: 52552.18 | AE27: 255 | AK27: 1

Sheet 2-4
A1: РОЗДІЛ 2. Нагляд за додержанням законів органами, які проводять оперативно-розшукову діяльність та досудове розслідування
A2: Таблиця 2 | E2: рядок | F2: Виявлено та внесено до Реєстру відомості про вчинені кримінальні правопорушення, раніше не обліковані | G2: з числа укритих від обліку: | I2: Скасовано постанов про закриття кримінальних проваджень | J2: у т.ч. направлено до суду | K2: Винесено прокурором постанов про відновлення досудового розслідування | L2: Дано письмових вказівок | M2: Прийнято прокурором участь у розгляді слідчим суддею скарг на рішення, дії чи бездіяльність слідчого або прокурора | N2: у т.ч. | O2: Із задоволеннням скарги (з графи 8) | P2: у т.ч. | R2: Таблиця 4 | U2: рядок | V2: УСЬОГО | W2: За фактами порушень, допущених при:
A3: Нагляд за законністю проведення досудового розслідування | N3: щодо невнесення до Реєстру відомостей про крим. правопорушення | P3: щодо невнесення до Реєстру відомостей про крим. правопорушення | R3: Нагляд за додержанням законності у діяльності правоохоронних органів | W3: реєстрації заяв і повідомлень про вчинені кримінальні правопорушення | X3: здійсненні досудового розслідування злочинів | Y3: здійсненні досудового розслідування кримінальних проступків | Z3: застосуванні незаконних методів досудового розслідування | AA3: у т.ч. у провадженнях щодо неповнолітніх ( з гр.1)
G4: надіслано до суду | H4: закрито за п.п.1, 2, 3 ч.1 ст. 284 КПК
A5: а | E5: б | F5: 1 | G5: 2 | H5: 3 | I5: 4 | J5: 5 | K5: 6 | L5: 7 | M5: 8 | N5: 9 | O5: 10 | P5: 11 | R5: а | U5: б | V5: 1 | W5: 2 | X5: 3 | Y5: 4 | Z5: 5 | AA5: 6
A6: УСЬОГО | E6: 1 | F6: 50 | G6: 2 | H6: 21 | I6: 852 | J6: 29 | K6: 6 | L6: 3446 | M6: 114 | N6: 30 | O6: 28 | P6: 7 | R6: Розглянуто документів прокурора з вжиттям заходів до усунення порушень законів у діяльності органів | S6: внутрішніх справ | U6: 1 | V6: 162 | W6: 28 | X6: 105 | AA6: 14
A7: Прокурорів (з рядка 1) | E7: 2 | F7: x | G7: x | H7: x | I7: x | J7: x | K7: x | L7: x | M7: 11 | N7: 7 | O7: 5 | P7: 3 | S7: з них: | T7: спец. підрозділів і ССВ | U7: 2
A8: з них за кримінальними провадженнями (з рядка 1): | B8: слідчих прокуратури | E8: 3 | I8: 14 | L8: 81 | M8: 40 | N8: 15 | O8: 7 | P8: 1 | T8: на транспорті | U8: 3 | V8: 9 | W8: 1 | X8: 8 | AA8: 1
B9: слідчих МВС | E9: 4 | F9: 50 | G9: 2 | H9: 21 | I9: 831 | J9: 29 | K9: 6 | L9: 3301 | M9: 56 | N9: 8 | O9: 15 | P9: 3 | S9: фіскальної служби | U9: 4 | V9: 2 | X9: 2
B10: з них: | C10: про злочини | E10: 5 | F10: 50 | G10: 2 | H10: 21 | I10: 831 | J10: 29 | K10: 6 | L10: 3301 | M10: 56 | N10: 8 | O10: 15 | P10: 3 | S10: служби безпеки | U10: 5 | V10: 1 | X10: 1
C11: у т.ч.: | D11: спец. відділів | E11: 6 | R11: Притягнуто до дисциплінарної відповідальності працівників органів за документами прокурора | S11: внутрішніх справ | U11: 6 | V11: 193 | W11: 43 | X11: 114 | AA11: 15
D12: на транспорті | E12: 7 | F12: 11 | H12: 8 | I12: 17 | L12: 141 | S12: з них: | T12: спец. підрозділів і ССВ | U12: 7
C13: про кримінальні проступки | E13: 8 | T13: на транспорті | U13: 8 | V13: 7 | W13: 1 | X13: 6
C14: у т.ч.: | D14: спец. відділів | E14: 9 | S14: фіскальної служби | U14: 9 | V14: 10 | X14: 10
D15: на транспорті | E15: 10 | S15: служби безпеки | U15: 10 | V15: 2 | X15: 2
B16: слідчих ДФС | E16: 11 | I16: 7 | L16: 36 | M16: 7 | O16: 1 | R16: Повідомлено про підозру за направленими до суду кримінальними провадженнями працівникам органів | S16: внутрішніх справ | U16: 11 | V16: 9
B17: слідчих служби безпеки | E17: 12 | L17: 28 | S17: з них: | T17: спец. підрозділів і ССВ | U17: 12
B18: у т.ч.: | C18: спец. підрозділів | E18: 13 | T18: на транспорті | U18: 13
A19: у т.ч. у провадженнях щодо неповнолітніх (з рядка 1) | E19: 14 | I19: 5 | J19: 2 | L19: 83 | S19: фіскальної служби | U19: 14
A20: Контрольний рядок | E20: 15 | F20: =SUM(F6:F19) -> 161 | G20: 6 | H20: 71 | I20: 2557 | J20: 89 | K20: 18 | L20: 10417 | M20: 284 | N20: 68 | O20: 71 | P20: 17 | S20: служби безпеки | U20: 15
R21: Контрольний рядок | U21: 16 | V21: =SUM(V6:V20) -> 395 | W21: 73 | X21: 248 | Y21: 0 | Z21: 0 | AA21: 30
A22: Таблиця 3 Розглянуті апеляційні скарги прокурора на судові рішення з питань досудового розслідування | E22: рядок | F22: Апеляційні скарги
F23: задоволено | H23: відхилено
A24: а | E24: б | F24: 1 | H24: 2
A25: Про скасування ухвал слідчого судді | E25: 1 | F25: 8 | H25: 4
A26: з них: | B26: про відмову в наданні дозволу на затримання | E26: 2
B27: у т.ч: | C27: у провадженнях щодо неповнолітніх | E27: 3
B28: про відмову у відстороненні від посади | E28: 4
A29: Контрольний рядок | E29: 5 | F29: =SUM(F25:F28) -> 8 | H29: =SUM(H25:H28) -> 4

Sheet 5-7
A2: Таблиця 5 | E2: рядок | F2: Усього | G2: у тому числі у кримінальних провадженнях органів: | L2: щодо неповнолітніх (з графи 1) | N2: Таблиця 6 | Q2: рядок | R2: У с ь о г о | S2: у т.ч. в органах: | AC2: щодо неповнолітніх (з графи 1)
G3: прокуратури | H3: МВС | I3: з них: на транспорті | J3: служби безпеки | K3: ДФС | S3: М В С | V3: С Б У | X3: ДФС | AA3: Прикордонної служби | AB3: Пенітенціарної служби
A4: Клопотання до суду про застосування запобіжних заходів | N4: Нагляд за додержанням законів при здійсненні оперативно-розшукової діяльності (ОРД) | S4: усього | T4: з ознаками ОГ і ЗО | U4: на транспорті | V4: усього | W4: з ознаками ОГ і ЗО | X4: усього | Y4: податкової міліції | Z4: боротьби з контрабандою
A5: а | E5: б | F5: 1 | G5: 2 | H5: 3 | I5: 4 | J5: 5 | K5: 6 | L5: 7 | N5: а | Q5: б | R5: 1 | S5: 2 | T5: 3 | U5: 4 | V5: 5 | W5: 6 | X5: 7 | Y5: 8 | Z5: 9 | AA5: 10 | AB5: 11 | AC5: 12
A6: Подано до суду клопотань (усього) | E6: 1 | F6: 640 | G6: 21 | H6: 613 | I6: 1 | J6: 5 | K6: 1 | L6: 15 | N6: Перевірено оперативно-розшукових справ | Q6: 1
A7: з них: | B7: про особисте зобов'язання | E7: 2 | F7: 217 | G7: 6 | H7: 208 | I7: 1 | J7: 2 | K7: 1 | L7: 4 | N7: Розглянуто документів прокурора | Q7: 2
B8: про заставу | E8: 3 | F8: 2 | G8: 2 | N8: Притягнуто до дисциплінарної відповідальності за документами прокурора | Q8: 3
B9: про домашній арешт | E9: 4 | F9: 77 | H9: 77 | L9: 5
B10: про тримання під вартою | E10: 5 | F10: 343 | G10: 13 | H10: 327 | J10: 3 | L10: 6 | N10: Скасовано незаконних постанов | Q10: 4
A11: Подано клопотань про поміщення до психіатричного закладу | E11: 6 | F11: 2 | H11: 2 | N11: з них: | O11: про заведення ОРС | Q11: 5
A12: Відкликано прокурором клопотань | E12: 7 | O12: про закриття | Q12: 6
A13: з них: | B13: про особисте зобов'язання | E13: 8 | O13: про зупинення | Q13: 7
B14: про заставу | E14: 9 | O14: про поновлення | Q14: 8
B15: про домашній арешт | E15: 10 | N15: Надано письмових вказівок відповідно до п.4 ст.14 Закону України "Про оперативно-розшукову діяльність" | Q15: 9
B16: про тримання під вартою | E16: 11
A17: Відкликано клопотань про поміщення до психіатричного закладу | E17: 12 | N17: Контрольний рядок | Q17: 10 | R17: =SUM(R6:R15) -> 0 | S17: 0 | T17: 0 | U17: 0 | V17: 0 | W17: 0 | X17: 0 | Y17: =SUM(Y6:Y15) -> 0 | Z17: 0 | AA17: 0 | AB17: 0 | AC17: 0
A18: Відмовлено слідчим суддею у задоволенні клопотань (з рядків 4,5) | E18: 13 | F18: 55 | G18: 1 | H18: 54 | L18: 1
A19: з них: | B19: про домашній арешт | E19: 14 | F19: 6 | H19: 6 | Q19: рядок | R19: розглянуто прокурором клопотань слідчих | T19: внесено прокурором особисто клопотань до суду | U19: рішення суду за результатами розгляду клопотання прокурора або слідчого (з граф 1,3) | W19: Прийнято рішень про проведення НСРД в порядку ст. 250 КПК України | X19: у т.ч. | Y19: Прийнято прокурором рішень про розсекречення | Z19: Прийнято прокурором самостійно рішень про проведення НСРД | AA19: у т.ч. | AB19: За рішенням прокурора припинено НСРД
B20: про тримання під вартою | E20: 15 | F20: 49 | G20: 1 | H20: 48 | L20: 1 | N20: Таблиця 7 | X20: з відмовою у задоволенні клопотання слідчим суддею | AA20: з подальшим розсекреченням
B21: у т.ч. з обранням (з рядка 15): | C21: особистого зобов’язання | E21: 16 | F21: 9 | H21: 9
C22: особистої поруки | E22: 17
C23: застави | E23: 18 | F23: 1 | G23: 1
C24: домашнього арешту | E24: 19 | F24: 33 | H24: 33 | L24: 1
A25: Відмовлено у задоволенні клопотань про поміщення до психіатричного закладу (з рядка 6) | E25: 20 | N25: Негласні слідчі (розшукові) дії | R25: прокурором погоджено | S25: прокурором відмовлено | U25: судом задоволено | V25: судом відмовлено
A26: Подано апеляційних скарг на ухвали слідчого судді про відмову в застосуванні запобіжного заходу | E26: 21 | F26: 8 | H26: 8
A27: з них: | B27: про домашній арешт | E27: 22 | N27: а | Q27: б | R27: 1 | S27: 2 | T27: 3 | U27: 4 | V27: 5 | W27: 6 | X27: 7 | Y27: 8 | Z27: 9 | AA27: 10 | AB27: 11
B28: про тримання під вартою | E28: 23 | F28: 8 | H28: 8 | N28: Усього | Q28: 1
A29: Подано апеляційних скарг на ухвали слідчого судді про відмову у поміщенні до психіатричного закладу | E29: 24 | N29: з них за кримінальними провадженнями: | O29: слідчих прокуратури | Q29: 2
A30: Задоволено (з рядка 21) | E30: 25 | F30: 3 | H30: 3 | O30: слідчих МВС | Q30: 3
A31: з них: | B31: про домашній арешт | E31: 26 | O31: у т. ч.: | P31: на транспорті | Q31: 4
B32: про тримання під вартою | E32: 27 | F32: 3 | H32: 3 | P32: спецвідділів | Q32: 5
A33: Задоволено апеляційних скарг на ухвали про відмову у поміщенні до психіатричного закладу (з рядка 24) | E33: 28 | O33: слідчих ДФС | Q33: 6
A34: Звільнено з-під варти осіб на стадії досудового розслідування та судового провадження (за закінченими досудовим розслідуванням або розглянутими судами кримінальними провадженнями) | E34: 29 | O34: слідчих СБУ | Q34: 7
A35: з них осіб за кримінал. провадженнями (з рядка 29): | B35: закритими за результатами досудового розслідування | C35: За відсутністю події або складу кримінального правопорушення чи за недоведеністю винуватості підозрюваного | E35: 30 | N35: з рядка 1, щодо неповнолітніх | Q35: 8
C36: з них: | D36: за відсутністю складу кримінального правопорушення у зв’язку із зміною законодавства (декриміналізацією) | E36: 31 | N36: Контрольний рядок | Q36: 9 | R36: =SUM(R28:R35) -> 0 | S36: =SUM(S28:S35) -> 0 | T36: 0 | U36: 0 | V36: 0 | W36: 0 | X36: 0 | Y36: 0 | Z36: 0 | AA36: 0 | AB36: 0
B37: розглянутими судами | C37: За виправданням обвинуваченого або закриттям кримінал. провадження судом | E37: 32
C38: з них: | D38: за невстановленням події або складу кримінал. правопорушення чи за недоведеністю винуватості особи у суді | E38: 33
D39: при відмові прокурора від підтримання обвинувачення | E39: 34
D40: за закриттям провадження з інших підстав | E40: 35
D41: за відсутністю складу кримінального правопорушення у зв’язку із зміною законодавства (декриміналізацією) | E41: 36
C42: Звільнено у зв’язку із засудженням до покарання, не пов’язаного з позбавленням волі | E42: 37
A43: Звільнено осіб з-під варти у зв’язку із скасуванням апеляційним судом ухвали суду про тримання під вартою | E43: 38 | F43: 1 | H43: 1
A44: Звільнено осіб з-під варти на стадії досудового розслідування у зв'язку з внесенням застави (ч. 3 ст. 183 КПК України) | E44: 39 | F44: 36 | G44: 10 | H44: 26
A45: Контрольний рядок | E45: 40 | F45: =SUM(F6:F44) -> 1493 | G45: 55 | H45: 1426 | I45: 2 | J45: 10 | K45: 2 | L45: 33

Sheet 8
A1: РОЗДІЛ 3. Участь прокурорів у судовому розгляді кримінальних проваджень та перегляді судових рішень
A2: Таблиця 8 Участь прокурорів у судовому розгляді кримінальних проваджень судами всіх інстанцій | E2: рядок | F2: Усього | G2: щодо неповнолітніх (з графи 1)
A3: а | E3: б | F3: 1 | G3: 2
A4: Участь у розгляді кримінальних проваджень судами першої інстанції (усього) | E4: 1 | F4: 3329 | G4: 87
A5: у т.ч.: | B5: у підготовчому судовому засіданні | E5: 2 | F5: 429 | G5: 12
B6: з них: | C6: з поверненням провадження прокурору при відмові у затвердженні угоди | E6: 3 | F6: 2
C7: у розгляді судом клопотань про направлення проваджень для закриття | E7: 4 | F7: 43 | G7: 1
C8: з ухваленням вироку на підставі угоди | E8: 5 | F8: 191 | G8: 3
C9: у т.ч.: | D9: про визнання винуватості | E9: 6 | F9: 82 | G9: 1
B10: у судовому розгляді проваджень з ухваленням вироку | E10: 7 | F10: 1786 | G10: 72
B11: з них: | C11: з ухваленням вироку на підставі угоди | E11: 8 | F11: 15 | G11: 1
C12: у т.ч.: | D12: про визнання винуватості | E12: 9 | F12: 7
B13: у розгляді судом клопотань прокурора про скасування вироку, яким затверджена угода (ст.476 КПК України) | E13: 10
B14: у провадженнях про застосування примусових заходів медичного характеру | E14: 11 | F14: 18
B15: у провадженнях про продовження, зміну, припинення примусових заходів медичного характеру, відновлення кримінального провадження | E15: 12 | F15: 69
B16: у розгляді судом клопотань про застосування примусових заходів виховного характеру | E16: 13 | F16: 2 | G16: 2
B17: у провадженні у формі приватного обвинувачення із закриттям за заявою потерпілого у зв’язку з відмовою від обвинувачення (п.7 ч.1 ст.284 КПК України) | E17: 14 | F17: 45
B18: у розгляді судом питань, пов’язаних з виконанням вироків | E18: 15 | F18: 896
B19: у розгляді судом питань, пов’язаних із застосуванням амністії | E19: 16 | F19: 38
A20: з них (з рядка 7): | B20: розглянуто за спрощеною процедурою (ч.3 ст.349 КПК України) | E20: 17 | F20: 1209
B21: про кримінальні проступки | E21: 18
B22: у провадженнях про вчинення кримінальних правопорушень у складі ОГ і ЗО | E22: 19 | F22: 1
B23: зі зміною обвинувачення прокурором у суді | E23: 20 | F23: 20 | G23: 2
B24: згідно з позицією потерпілого, який не погодився зі зміною обвинувачення прокурором | E24: 21
B25: з висуненням прокурором додаткового обвинувачення в суді | E25: 22
B26: з ухваленням виправдувального вироку (в особах) | E26: 23 | F26: 14 | G26: 2
B27: у т.ч.: | C27: згідно з позицією потерпілого при відмові прокурора від обвинувачення | E27: 24
B28: з ухваленням обвинувального вироку, де прокурор відмовився від обвинувачення (в особах) | E28: 25
A29: Участь у кримінальних провадженнях, закритих за реабілітуючими підставами судами усіх інстанцій(в особах) | E29: 26 | F29: 4
A30: з них: | B30: згідно з позицією прокурора | E30: 27
A31: Участь у перегляді судових рішень судом апеляційної інстанції | E31: 28 | F31: 470 | G31: 29
A32: з них: | B32: з ухваленням нового вироку | E32: 29 | F32: 36
A33: з рядка 28 | B33: вироків, ухвалених на підставі угоди про примирення | E33: 30 | F33: 2
B34: вироків, ухвалених на підставі угоди про визнання винуватості | E34: 31 | F34: 2 | G34: 1
A35: Участь у перегляді судових рішень судом касаційної інстанції | E35: 32
A36: у т.ч.: | B36: вироків, ухвалених на підставі угоди про визнання винуватості та постановлених щодо них рішень суду апеляційної інстанції | E36: 33
A37: Участь у перегляді судових рішень Верховним Судом України | E37: 34
A38: з них: | B38: на підставі п.1 ч.1 ст.445 КПК України | E38: 35
B39: на підставі п.2 ч.1 ст.445 КПК України | E39: 36
A40: Участь у перегляді судових рішень за нововиявленими обставинами | E40: 37
A41: з них (з рядка 37): | B41: судами першої інстанції | E41: 38
B42: з них: | C42: із скасуванням вироку | E42: 39
C43: у т.ч. | D43: за заявами прокурора | E43: 40
B44: апеляційними судами | E44: 41
B45: з них: | C45: із скасуванням вироку | E45: 42
C46: у т.ч.: | D46: за заявами прокурора | E46: 43
B47: Вищим спеціалізованим судом України з розгляду цивільних і кримінальних справ | E47: 44
B48: з них: | C48: із скасуванням вироку | E48: 45
C49: у т.ч.: | D49: за заявами прокурора | E49: 46
A50: Контрольний рядок | E50: 47 | F50: =SUM(F4:F49) -> 8710 | G50: =SUM(G4:G49) -> 213

Sheet 9
A2: Таблиця 9 | F2: рядок | G2: Апеляційні скарги прокурора | I2: Касаційні скарги прокурора | K2: Заяви в порядку ст.445 КПК
A3: Розглянуті апеляційні, касаційні скарги та заяви прокурора (за кількістю осіб) | G3: задово-лено | H3: відхи-лено | I3: задово-лено | J3: відхи-лено | K3: задово-лено | L3: відхи-лено
A4: а | F4: б | G4: 1 | H4: 2 | I4: 3 | J4: 4 | K4: 5 | L4: 6
A5: Усього | F5: 1 | G5: 162 | H5: 48
A6: Підстави апеляційних, касаційних скарг та заяв прокурора (з рядка 1) | B6: Про скасування вироку (усього) | F6: 2 | G6: 78 | H6: 26 | K6: x | L6: x
B7: з них: | C7: з призначенням нового судового розгляду | F7: 3 | G7: 36 | H7: 2 | K7: x | L7: x
C8: з ухваленням нового вироку | F8: 4 | G8: 35 | H8: 23 | I8: x | J8: x | K8: x | L8: x
C9: з ряд. 3, 4 | D9: у зв’язку з виправданням особи | F9: 5 | G9: 8 | H9: 8 | K9: x | L9: x
D10: за м’якістю покарання | F10: 6 | G10: 14 | H10: 11 | K10: x | L10: x
C11: із закриттям провадження | F11: 7 | G11: 2 | K11: x | L11: x
C12: у т.ч. | D12: за реабілітуючими підставами | F12: 8 | K12: x | L12: x
C13: у провадженнях щодо неповнолітніх | F13: 9 | G13: 2 | H13: 1 | K13: x | L13: x
C14: у провадженнях про вчинення кримінал. правопорушень у складі ОГ і ЗО | F14: 10 | H14: 2 | K14: x | L14: x
C15: ухваленого на підставі угоди | F15: 11 | G15: 1 | K15: x | L15: x
C16: у т.ч. | D16: про примирення | F16: 12 | G16: 1 | K16: x | L16: x
D17: з них: | E17: направлено для здійснення досудового розслідування | F17: 13 | I17: x | J17: x | K17: x | L17: x
D18: про визнання винуватості | F18: 14 | K18: x | L18: x
D19: з них: | E19: направлено для здійснення досудового розслідування | F19: 15 | I19: x | J19: x | K19: x | L19: x
B20: Про зміну вироку (усього) | F20: 16 | G20: 43 | H20: 4 | K20: x | L20: x
B21: з них: | C21: у т.ч. | D21: з пом’якшенням покарання | F21: 17 | K21: x | L21: x
C22: у провадженнях щодо неповнолітніх | F22: 18 | G22: 8 | K22: x | L22: x
C23: у провадженнях про вчинення кримінал. правопорушень у складі ОГ і ЗО | F23: 19 | K23: x | L23: x
B24: Про скасування ухвал суду (усього) | F24: 20 | G24: 40 | H24: 18
B25: з них: | C25: з постановленням нової ухвали | F25: 21 | G25: 1 | I25: x | J25: x
C26: з направленням провадження на новий розгляд до суду касаційної інстанції | F26: 22 | G26: x | H26: x | I26: x | J26: x
C27: про повернення прокурору обвинувального акта, клопотання про застосування примусових заходів медичного або виховного характеру | F27: 23 | G27: 28 | H27: 14 | I27: x | J27: x | K27: x | L27: x
C28: про закриття провадження за реабілітуючими підставами | F28: 24 | K28: x | L28: x
B29: Про зміну ухвал суду (усього) | F29: 25 | G29: 1
A30: Контрольний рядок | F30: 26 | G30: =SUM(G5:G29) -> 460 | H30: 157 | I30: 0 | J30: 0 | K30: 0 | L30: 0

Sheet 10-11
A2: Таблиця 10 | E2: рядок | F2: У порядку глави 31 КПК | H2: У порядку глави 32 КПК
A3: Перегляд судових рішень (за кількістю осіб) з ініціативи - | F3: прокурора | G3: інших учасників | H3: прокурора | I3: інших учасників
A4: a | E4: б | F4: 1 | G4: 2 | H4: 3 | I4: 4
A5: Усього | E5: 1 | F5: 162 | G5: 48
A6: Підстави апеляційних, касаційних скарг та результати розгляду (з рядка 1) | B6: Про скасування вироку | E6: 2 | F6: 78 | G6: 19
B7: з них: | C7: із закриттям провадження | E7: 3 | F7: 2 | G7: 7
C8: з призначенням нового розгляду | E8: 4 | F8: 36 | G8: 12
C9: ухвалено новий вирок при скасуванні | E9: 5 | F9: 35 | H9: x | I9: x
B10: З рядків 4, 5 за м’якістю | E10: 6 | F10: 14 | G10: 1
B11: Про зміну вироку | E11: 7 | F11: 43 | G11: 28
B12: у т.ч. | C12: з пом’якшенням покарання | E12: 8 | G12: 26
B13: з рядків 2, 7 | C13: скасовано чи змінено за обставинами, які виникли після постановлення вироку | E13: 9 | G13: 3
C14: у провадженнях щодо неповнолітніх | E14: 10 | F14: 10 | G14: 2
C15: у провадженнях про вчинення кримінальних правопорушень у складі ОГ і ЗО | E15: 11 | G15: 1
B16: Про скасування ухвали | E16: 12 | F16: 40 | G16: 1
B17: з них: | C17: скасовано ухвал з поверненням обвинувального акта, клопотання про застосування примусових заходів медичного або виховного характеру | E17: 13 | F17: 28 | H17: x | I17: x
C18: із закриттям провадження за реабілітуючими підставами | E18: 14
C19: з постановленням нової ухвали | E19: 15 | F19: 1 | H19: x | I19: x
B20: Про зміну ухвали | E20: 16 | F20: 1
A21: Контрольний рядок | E21: 17 | F21: =SUM(F5:F20) -> 450 | G21: =SUM(G5:G20) -> 148 | H21: =SUM(H5:H20) -> 0 | I21: =SUM(I5:I20) -> 0
A23: РОЗДІЛ 4. Міжнародно-правове співробітництво у кримінальному провадженні
A24: Таблиця 11 | E24: рядок | F24: УСЬОГО | G24: Види правової допомоги
A25: Робота за зверненнями про правову допомогу | G25: виконання процесуальних дій | H25: перейняття кримінального провадження | I25: екстрадиція
A26: а | E26: б | F26: 1 | G26: 2 | H26: 3 | I26: 4
A27: Звернення іноземних установ | C27: Надійшло звернень у звітному періоді | E27: 1 | F27: 1 | G27: 1
C28: Виконано звернень | E28: 2 | F28: 1 | G28: 1
A29: Звернення установ України | C29: Підготовлено звернень у звітному періоді | E29: 3 | F29: 7 | G29: 5 | H29: 2
C30: з них (з рядка 3): | D30: органами прокуратури | E30: 4
D31: органами внутрішніх справ | E31: 5 | F31: 4 | G31: 3 | H31: 1
D32: органами служби безпеки | E32: 6 | F32: 3 | G32: 2 | H32: 1
D33: органами фіскальної служби | E33: 7
D34: судовими органами | E34: 8
C35: Надіслано звернень для виконання | E35: 9 | F35: 7 | G35: 5 | H35: 2
C36: Виконано звернень | E36: 10 | F36: 5 | G36: 4 | H36: 1
A37: Контрольний рядок | E37: 11 | F37: =SUM(F27:F36) -> 28 | G37: =SUM(G27:G36) -> 21 | H37: =SUM(H27:H36) -> 7 | I37: =SUM(I27:I36) -> 0

Sheet 12-14
A1: РОЗДІЛ 5. Нагляд за додержанням законів при виконанні судових рішень у кримінальних провадженнях, а також при застосуванні інших заходів примусового характеру, пов'язаних з обмеженням особистої свободи громадян
A2: Таблиця 12 Нагляд за додержанням законів при виконанні судових рішень у кримінальних провадженнях | C2: рядок | D2: Звільнено за ініціативою прокурора незаконно утримуваних осіб | E2: Розглянуто документів прокурора з вжиттям заходів щодо усунення порушень закону | F2: Притягнуто до дисциплінарної, адміністративної відповідальності працівників
A3: а | C3: б | D3: 1 | E3: 2 | F3: 3
A4: Усього: | C4: 1 | E4: 143 | F4: 125
A5: Слідчі ізолятори | C5: 2 | E5: 7 | F5: 6
A6: Арештні доми | C6: 3
A7: Виправні центри | C7: 4 | E7: 15 | F7: 5
A8: Виправні колонії | C8: 5 | E8: 35 | F8: 24
A9: Виховні колонії | C9: 6 | E9: 8 | F9: 8
A10: Кримінально-виконавчі інспекції | C10: 7 | E10: 24 | F10: 15
A11: Органи виконавчої влади, місцевого самоврядування, підприємства, установи, організації | C11: 8 | D11: x | E11: 45 | F11: 65
A12: Підрозділи державної виконавчої служби | C12: 9 | D12: x | E12: 8
A13: Відділення психіатричних лікарень та стаціонарної судово-психіатрічної експертизи | C13: 10 | E13: 1 | F13: 2
A14: Дисциплінарний батальйон | C14: 11
A15: Військові частини | C15: 12
A16: з рядка 1 | B16: у т.ч. щодо неповнолітніх | C16: 13 | E16: 32 | F16: 29
A17: Контрольний рядок | C17: 14 | D17: =SUM(D4:D16) -> 0 | E17: =SUM(E4:E16) -> 318 | F17: =SUM(F4:F16) -> 279
A19: Таблиця 13 Нагляд за додержанням законів при застосуванні інших заходів примусового характеру, пов’язаних з обмеженням особистої свободи громадян | C19: рядок | D19: Звільнено за ініціативою прокурора незаконно утримуваних осіб | E19: Розглянуто документів прокурора з вжиттям заходів щодо усунення порушень закону | F19: Притягнуто до дисциплінарної, адміністративної відповідальності працівників
A20: а | C20: б | D20: 1 | E20: 2 | F20: 3
A21: Усього: | C21: 1 | E21: 125 | F21: 63
A22: Пункти тимчасового тримання прикордонної служби та спецприміщення прикордонних загонів | C22: 2 | E22: 4 | F22: 9
A23: Ізолятори тимчасового тримання органів внутрішніх справ | C23: 3 | E23: 81 | F23: 34
A24: Місця тимчасового тримання органів СБУ | C24: 4
A25: Кімнати для затриманих та доставлених чергових частин органів внутрішніх справ | C25: 5 | E25: 4 | F25: 4
A26: Спец. приймальники для тримання осіб, підданих адміністративному арешту | C26: 6 | E26: 2 | F26: 2
A27: Спеціальні палати протитуберкульозних та територіальних медичних закладів | C27: 7 | E27: 20 | F27: 1
A28: Психіатричні заклади | C28: 8
A29: Приймальники-розподільники для дітей | C29: 9
A30: Школи та училища соціальної реабілітації | C30: 10
A31: Гауптвахти | C31: 11
A32: з рядка 1 | B32: у т.ч. щодо неповнолітніх | C32: 12 | E32: 6 | F32: 2
A33: Контрольний рядок | C33: 13 | D33: =SUM(D21:D32) -> 0 | E33: =SUM(E21:E32) -> 242 | F33: =SUM(F21:F32) -> 115
A35: Таблиця 14 | C35: рядок | D35: усього | E35: у т.ч. непов-нолітніх
A36: а | C36: б | D36: 1 | E36: 2
A37: Звільнено незаконно утримуваних осіб з: | B37: карцерів | C37: 1
B38: дисциплінарних ізоляторів | C38: 2
B39: приміщень камерного типу (одиночних камер) | C39: 3 | E39: x
A40: Контрольний рядок | C40: 4 | D40: =SUM(D37:D39) -> 0 | E40: =SUM(E37:E38) -> 0

Sheet 15-16
A1: РОЗДІЛ 6. Розгляд звернень
A2: Таблиця 15 | D2: рядок | E2: УСЬОГО | G2: Таблиця 16 | J2: рядок | K2: Вирішено звернень (без дублікатів) | L2: у т.ч., що надійшли від народних депутатів України | M2: Задоволено (з вирішених без дублікатів) | N2: у т.ч., що надійшли від народних депутатів України | O2: Вирішено звернень понад установлений термін
A3: Розгляд і вирішення звернень (без дублікатів) | G3: Категорії вирішених та задоволених звернень
A4: а | D4: б | E4: 1 | G4: а | J4: б | K4: 1 | L4: 2 | M4: 3 | N4: 4 | O4: 5
A5: Вирішено звернень | D5: 1 | E5: 4579 | G5: Усього | J5: 1 | K5: 4579 | L5: 128 | M5: 205 | N5: 1 | O5: 2
A6: Задоволено (з вирішених) | D6: 2 | E6: 205 | G6: З питань досудового розслідування | J6: 2 | K6: 2332 | L6: 84 | M6: 28 | O6: 1
A7: Задоволено повторних звернень на раніше прийняті рішення тієї ж прокуратури (з рядка 2) | D7: 3 | G7: з них з питань: | H7: щодо поновлення конституційних прав громадян в межах КПК | J7: 3 | K7: 10 | L7: 1
H8: від учасників кримінального провадження | J8: 4 | K8: 221 | M8: 8 | O8: 1
A9: Задоволено з тих, що раніше відхилялись підпорядкованими прокурорами | D9: 4 | E9: 1 | G9: у т.ч.: | H9: на дії і рішення | I9: слідчих прокуратури | J9: 5 | K9: 141 | L9: 5 | M9: 1
I10: слідчих МВС | J10: 6 | K10: 1085 | L10: 64 | M10: 21 | O10: 1
I11: з них слідчих відділів "ОЗ" | J11: 7 | K11: 3 | M11: 1
A12: Направлено звернень до інших відомств для вирішення | D12: 5 | E12: 2690 | I12: слідчих ДФС | J12: 8 | K12: 37
I13: процесуальних керівників | J13: 9 | K13: 1
A14: у т.ч.: | B14: що надійшли від народних депутатів України | D14: 6 | E14: 20 | G14: З питань додержання законів про національну безпеку | J14: 10
A15: Повернуто заявникам або залишено без розгляду | D15: 7 | E15: 80 | G15: у т.ч. на дії і рішення: | I15: органів служби безпеки | J15: 11
I16: митних органів | J16: 12
A17: УСЬОГО (рядки 1+5+7) | D17: 8 | E17: 7349 | I17: прикордонних військ | J17: 13
A18: Направлено звернень підпорядкованим (іншим) прокурорам | D18: 9 | E18: 1232 | G18: З питань надання правової допомоги | J18: 14 | K18: 3 | M18: 1
G19: З питань участі у кримінальному провадженні в суді | J19: 15 | K19: 36 | L19: 1
A20: у т.ч.: | B20: що надійшли від народних депутатів України | D20: 10 | G20: З питань представництва інтересів громадян та держави в суді | J20: 16 | K20: 383 | L20: 15 | M20: 108 | O20: 1
A21: Розглянуто (вирішено) звернень з порушенням встановленого порядку (з рядків 1, 5, 9) | D21: 11 | E21: 5 | G21: у т.ч. з питань: | H21: законності судових рішень | J21: 17 | K21: 25
H22: неправомірності дій службових та інших осіб при здійсненні судочинства | J22: 18 | K22: 4
A23: у т.ч.: | B23: що надійшли від народних депутатів України | D23: 12 | G23: Про права дітей | J23: 19 | K23: 6 | M23: 2
G24: З питань додержання законодавства при виконанні рішень судів та інших органів | J24: 20 | K24: 34 | L24: 3
A25: Залишок звернень на кінець звітного періоду | D25: 13 | E25: 245 | G25: З питань нагляду за додержанням кримінально-виконавчого законодавства | J25: 21 | K25: 329 | L25: 1 | M25: 37
A26: Прийнято громадян на особистому прийомі | D26: 14 | E26: 2428 | G26: у т.ч.: | H26: на недозволені заходи впливу адміністрації місць застосування заходів примусового характеру | J26: 22 | K26: 14 | M26: 4
A27: з рядка 14 | B27: керівником прокуратури | D27: 15 | E27: 924 | G27: Контрольний рядок | J27: 23 | K27: =SUM(K5:K26) -> 9243 | L27: =SUM(L5:L26) -> 302 | M27: =SUM(M5:M26) -> 416 | N27: =SUM(N5:N26) -> 1 | O27: =SUM(O5:O26) -> 6
B28: з них: | C28: в’язнів | D28: 16 | E28: 66
A29: з рядка 15 | B29: особисто прокурором області | D29: 17 | E29: 262
B30: з них: | C30: в’язнів | D30: 18 | E30: 5
A31: Задоволено звернень з тих, що прийняті особисто керівником прокуратури | D31: 19 | E31: 20
A32: у т.ч.: | B32: в’язнів | D32: 20
B33: з них: | C33: прийнятих прокурором області | D33: 21
A34: Виключено з обліку звернень | D34: 22 | E34: 310
A35: Контрольний рядок | D35: 23 | E35: =SUM(E5:E34) -> 20421

Sheet 17-19
A1: РОЗДІЛ 7. Висвітлення діяльності органів прокуратури
A2: Таблиця 17 | H2: рядок | I2: УСЬОГО
A3: а | H3: б | I3: 1
A4: Інформація в органи влади | H4: 1 | I4: 109
A5: Виступи в засобах масової інформації | H5: 2 | I5: 1870
A6: з них: | B6: друковані ЗМІ | H6: 3 | I6: 288
B7: електронні ЗМІ | H7: 4 | I7: 300
B8: інформаційні агентства | H8: 5 | I8: 38
B9: інтернет | H9: 6 | I9: 1237
B10: акредитовані в Україні зарубіжні ЗМІ | H10: 7
A11: Підготовлено програм | H11: 8
A12: з них: | B12: протрансльовано в ефірі центральних телеканалів | H12: 9
A13: Контрольний рядок | H13: 10 | I13: =SUM(I4:I12) -> 3842
A14: РОЗДІЛ 8. Розгляд запитів на інформацію
A15: Таблиця 18 | C15: рядок | D15: УСЬОГО | F15: Таблиця 19 | H15: рядок | I15: Надано інформацію на запити | J15: Відмовлено у задоволенні запиту | K15: Надано роз'яснення
A16: а | C16: б | D16: 1 | F16: а | H16: б | I16: 1 | J16: 2 | K16: 3
A17: Розглянуто запитів (сума рядків 2+5+6) | C17: 1 | D17: 71 | F17: З питань досудового розслідування | H17: 1 | I17: 23 | K17: 2
A18: Надано інформацію на запит | C18: 2 | D18: 56 | F18: З питань підтримання державного обвинувачення в суді | H18: 2
A19: з них (з рядка 2): | B19: протягом 48 годин | C19: 3 | D19: 1 | F19: З питань представництва інтересів громадян та держави в суді | H19: 3 | I19: 1
B20: з продовженням строку розгляду запиту | C20: 4 | D20: 1 | F20: З питань організаційно-розпорядчої діяльності | H20: 4 | I20: 7
A21: Відмовлено у задоволенні запиту | C21: 5 | F21: у т.ч.: | G21: про надання статистичної інформації | H21: 5 | I21: 5
A22: Надано роз'яснення | C22: 6 | D22: 15 | F22: З кадрових питань | H22: 6 | I22: 11
A23: Надіслано іншим розпорядникам | C23: 7 | D23: 3 | F23: З інших питань | H23: 7 | I23: 14 | K23: 13
A24: у т.ч.: | B24: підпорядкованим прокурорам | C24: 8 | D24: 1 | F24: Контрольний рядок | H24: 8 | I24: =SUM(I17:I23) -> 61 | J24: =SUM(J17:J23) -> 0 | K24: =SUM(K17:K23) -> 15
A25: Залишок запитів | C25: 9 | D25: 2
A26: у т.ч.: | B26: прийнято рішення про відстрочку в задоволенні запиту | C26: 10
A27: Контрольний рядок | C27: 11 | D27: =SUM(D17:D26) -> 150
A31: Прокурор
A34: (підпис) | G34: (П.І.Б.)
A35: Виконавець .
B36: (П.І.Б.)
A37: Телефон: факс: електронна пошта: .
A39: Звіт складено в примірнику
A40: Прим.№1 -
A41: Прим.№2 -

Sheet dod 1-2
M1: Додаток (продовження)
A2: Таблиця 1 | D2: рядок | E2: Відкрито проваджень за позовами | F2: Розглянуто позовів | G2: Задоволено позовів | H2: Сума, на яку задоволено позови (тис. грн.) | I2: Участь у розгляді справ у судах | L2: Подано скарг, заяв | M2: Задоволено скарг, заяв
A3: Позови до органів прокуратури та її посадових осіб, участь у розгляді таких справ у судах | I3: Першої інстанції | J3: Апеляційної інстанції | K3: Касаційної інстанції
A4: а | D4: б | E4: 1 | F4: 2 | G4: 3 | H4: 4 | I4: 5 | J4: 6 | K4: 7 | L4: 8 | M4: 9
A5: УСЬОГО | D5: 1 | E5: 7 | F5: 9 | G5: 1 | H5: 169 | I5: 7 | J5: 2 | L5: 1 | M5: 3
A6: у т.ч. (з рядка 1): | B6: про відшкодування шкоди, заподіяної органами прокуратури (ст.1176 ЦК України) | D6: 2 | E6: 3 | F6: 2 | G6: 1 | H6: 169 | I6: 2 | J6: 2 | L6: 1 | M6: 2
B7: на дії чи бездіяльність органів прокуратури | D7: 3 | E7: 1 | F7: 1 | I7: 1
B8: з трудових спорів | D8: 4 | E8: 3 | F8: 5 | I8: 4 | M8: 1
A9: Контрольний рядок | D9: 5 | E9: =SUM(E5:E8) -> 14 | F9: 17 | G9: 2 | H9: 338 | I9: 14 | J9: 4 | K9: 0 | L9: 2 | M9: 6
M10: Додаток (продовження)
A11: Таблиця 2 Участь прокурорів у розгляді справ судом | K11: рядок | L11: Усього справ | M11: щодо непов-нолітніх (з графи 1)
A12: а | K12: б | L12: 1 | M12: 2
A13: Участь у розгляді справ судами 1-ої інстанції (всього) | K13: 1 | L13: 2
A14: у т.ч. | B14: у судовому розгляді справ з постановленням вироку | K14: 2 | L14: 1
A15: З рядка 2 | B15: Про скоєння злочинів ОГ і ЗО | K15: 3
B16: Зі зміною обвинувачення прокурором у суді | K16: 4
B17: Згідно з пропозицією потерпілого, який не погодився зі зміною обвинувачення прокурором | K17: 5
B18: З постановленням виправдувального вироку (в особах) | K18: 6
A19: Участь у розгляді справ, закритих за реабілітуючими підставами постановлених судами всіх інстанцій | K19: 7
A20: Участь у розгляді справ апеляційною інстанцією | K20: 8 | L20: 3
A21: у т.ч. | B21: у судовому розгляді справ з прийняттям рішення | K21: 9 | L21: 1
B22: з постановленням вироку | K22: 10 | L22: 1
A23: Участь у розгляді справ касаційною інстанцією | K23: 11
A24: у т.ч. | B24: щодо постановлених в апеляційному порядку вироків і постанов | K24: 12
B25: щодо рішень, передбачених ч.2 ст.383 КПК України (1961 року) | K25: 13
B26: за нововиявленими обставинами | K26: 14
A27: Участь у перегляді судових рішень Верховним Судом України | K27: 15
A28: у т.ч. | B28: на підставі п.1 ч.1 ст.40012 КПК України (1961 року) | K28: 16
B29: на підставі п.2 ч.1 ст.40012 КПК України (1961 року) | K29: 17
A30: Участь у розгляді судом питань, пов’язаних з виконанням вироків | K30: 18
A31: Контрольний рядок | K31: 19 | L31: =SUM(L13:L30) -> 8 | M31: =SUM(M13:M30) -> 0

Sheet dod 3-4
K1: Додаток (продовження)
A2: Таблиця 3 | E2: рядок | F2: Апеляції прокурора | H2: Касаційні подання на рішення | L2: Заяви в порядку ст.4005 КПК (1961 року)
A3: Розглянуті апеляції, касаційні скарги та заяви прокурора (за кількістю осіб) | H3: постановлені в апеляційному порядку | J3: передбачені ч.2 ст.383 КПК (1961 року)
F4: задово- лено | G4: відхи- лено | H4: задово- лено | I4: відхи- лено | J4: задово- лено | K4: відхи- лено | L4: задово- лено | M4: відхи- лено
A5: а | E5: б | F5: 1 | G5: 2 | H5: 3 | I5: 4 | J5: 5 | K5: 6 | L5: 7 | M5: 8
A6: Усього | E6: 1 | F6: 1 | G6: 2
A7: Мотиви подань та клопотань (з рядка 1) | B7: Про скасування вироку (усього) | E7: 2 | F7: 1 | G7: 1
B8: З рядка 2 | C8: З постановленням нового вироку | E8: 3 | F8: 1 | H8: x | I8: x | J8: x | K8: x | L8: x | M8: x
C9: Із закриттям справи | E9: 4
C10: у т.ч. | D10: з реабілітуючих підстав | E10: 5
C11: У справах щодо неповнолітніх | E11: 6
C12: У справах про скоєння злочинів ОГ і ЗО | E12: 7
B13: Про зміну вироку (усього) | E13: 8
B14: з рядка 8 | C14: З пом'якшенням покарання | E14: 9
C15: У справах щодо неповнолітніх | E15: 10
C16: У справах про скоєння злочинів ОГ і ЗО | E16: 11
B17: Про скасування ухвал чи постанов суду (усього) | E17: 12 | G17: 1
B18: у т.ч. | C18: про закриття справи з реабілітуючих підстав | E18: 13
B19: Про зміну ухвал чи постанов суду (усього) | E19: 14
A20: Контрольний рядок | E20: 15 | F20: =SUM(F6:F19) -> 3 | G20: =SUM(G6:G19) -> 4 | H20: =SUM(H6:H19) -> 0 | I20: 0 | J20: 0 | K20: 0 | L20: 0 | M20: 0
A22: Таблиця 4 | E22: рядок | F22: У порядку глав 29-30 КПК (1961 року) | H22: У порядку глави 31 КПК (1961 року) на вироки
A23: Перегляд вироків (за кількістю осіб) | H23: апеляційних судів | J23: місцевих судів
A24: з ініціативи - | F24: прокурора | G24: інших учасників | H24: прокурора | I24: інших учасників | J24: прокурора | K24: інших учасників
A25: а | E25: б | F25: 1 | G25: 2 | H25: 3 | I25: 4 | J25: 5 | K25: 6
A26: Скасовано із закриттям справи чи поверненням на новий судовий розгляд та додаткове розслідування | E26: 1
A27: Постановлено новий вирок при скасуванні | E27: 2 | F27: 1 | H27: x | I27: x | J27: x | K27: x
A28: З ряд.1, 2 за м'якістю | E28: 3
A29: Змінено | E29: 4
A30: у т.ч. | C30: за суворістю | E30: 5
A31: З рядків 1, 4 скасовано чи змінено за обставинами, які виникли після постановлення вироку | E31: 6 | F31: x | H31: x | J31: x
A32: Усього | E32: 7 | F32: 1
A33: З ряд. 7 | B33: У справах про злочини неповнолітніх | E33: 8
B34: У справах про злочини ОГ і ЗО | E34: 9
A35: Контрольний рядок | E35: 10 | F35: =SUM(F26:F34) -> 2 | G35: =SUM(G26:G34) -> 0 | H35: =SUM(H26,H28:H34) -> 0 | I35: =SUM(I26,I28:I34) -> 0 | J35: =SUM(J26,J28:J34) -> 0 | K35: =SUM(K26,K28:K34) -> 0
A37: ='17-19'!A30 -> 0
A38: ='17-19'!A31 -> Прокурор
A39: ='17-19'!A32 -> 0
I40: ='17-19'!G33 -> 0
A41: (підпис) | I41: (П.І.Б.)

Sheet Титульний
A2: ЗВІТНІСТЬ
A4: ЗВІТ
A5: ПРО РОБОТУ ПРОКУРОРА
A7: за 9 місяців 2015 року
A10: Подають: | E10: Терміни подання | F10: Форма № П
A11: міські, районні, міжрайонні прокурори – прокурорам Автономної Республіки Крим, областей, міст Києва і Севастополя | E11: до 2 числа після звітного періоду | F11: "квартальна"
A12: прокурори районів у містах з районним поділом – прокурору міста | E12: до 2 числа після звітного періоду | F12: ЗАТВЕРДЖЕНО
A13: прокурори міст з районним поділом – прокурору обласного рівня | E13: до 3 числа після звітного періоду | F13: Наказ Генерального прокурора України від 28 листопада 2012 року № 121 зі змінами та доповненнями: від 25 квітня 2013 року №55 від 11 лютого 2014 року №18 від 26 листопада 2014 року №132
A14: військові прокурори гарнізонів - військовому прокурору регіону | E14: до 2 числа після звітного періоду
A15: прокурори Автономної Республіки Крим, областей, міст Києва і Севастополя – управлінню організації ведення Єдиного реєстру досудових розслідувань та статистичної інформації Генеральної прокуратури України | E15: до 5 числа після звітного періоду
A16: військові прокурори регіонів - Головній військовій прокуратурі | E16: до 5 числа після звітного періоду | F16: за погодженням з Держстатом
A17: Головна військова прокуратура – управлінню організації ведення Єдиного реєстру досудових розслідувань та статистичної інформації Генеральної прокуратури України | E17: до 6 числа після звітного періоду
A18: начальники структурних підрозділів Генеральної прокуратури України – управлінню організації ведення Єдиного реєстру досудових розслідувань та статистичної інформації Генеральної прокуратури України | E18: до 3 числа після звітного періоду
A19: Генеральна прокуратура України – до Держстату | E19: на 35 день після звітного періоду (півріччя, рік)
A21: Респондент:
A22: Найменування: | B22: Прокуратура Чернігівської області
A23: Місцезнаходження:
A25: (поштовий індекс, область, район, населений пункт, вулиця/провулок, площа тошо, № будинку)

Sheet Помилки
D1: Перевірка помилок | N1: Перелік контрольних рівностей
D2: Показники роботи прокурора | K2: Таблиця 1 | L2: В Таблиці 1 у графі 3 сума чисел у рядках 2-4 - | P2: =SUM('1'!G8:G10) -> 62
D3: Форма № П | L3: не повинна перевищувати число у рядку 1 - | P3: ='1'!G7 -> 67
A4: Назва: | C4: Прокуратура Чернігівської області | L4: В Таблиці 1 у графі 4 сума чисел у рядках 2-4 - | P4: =SUM('1'!H8:H10) -> 106370
A5: Період: | B5: 9 місяців | C5: 2015 | D5: року | L5: не повинна перевищувати число у рядку 1 - | P5: ='1'!H7 -> 106405
L6: В Таблиці 1 у графі 5 сума чисел у рядках 2-4 - | P6: =SUM('1'!I8:I10) -> 348822
L7: не повинна перевищувати число у рядку 1 - | P7: ='1'!I7 -> 354656
A8: В Таблиці 1 в графі 3 рядку 1 стоїть цифра - 67 | L8: В Таблиці 1 у графі 6 сума чисел у рядках 2-4 - | P8: =SUM('1'!J8:J10) -> 565
A9: за попередній квартал ця цифра була - 90 | L9: не повинна перевищувати число у рядку 1 - | P9: ='1'!J7 -> 620
L10: В Таблиці 1 у графі 7 сума чисел у рядках 2-4 - | P10: =SUM('1'!K8:K10) -> 210264
A11: В Таблиці 1 в графі 3 рядку 3 стоїть цифра - 17 | L11: не повинна перевищувати число у рядку 1 - | P11: ='1'!K7 -> 210545
A12: за попередній квартал ця цифра була - 36 | L12: В Таблиці 1 у графі 8 сума чисел у рядках 2-4 - | P12: =SUM('1'!L8:L10) -> 10772
L13: не повинна перевищувати число у рядку 1 - | P13: ='1'!L7 -> 10787
A14: В Таблиці 1 в графі 3 рядку 4 стоїть цифра - 4 | L14: В Таблиці 1 у графі 9 сума чисел у рядках 2-4 - | P14: =SUM('1'!M8:M10) -> 10113
A15: за попередній квартал ця цифра була - 11 | L15: не повинна перевищувати число у рядку 1 - | P15: ='1'!M7 -> 10228
L16: В Таблиці 1 у графі 10 сума чисел у рядках 2-4 - | P16: =SUM('1'!R8:R10) -> 774
A17: В Таблиці 1 в графі 3 рядку 5 стоїть цифра - 5 | L17: не повинна перевищувати число у рядку 1 - | P17: ='1'!R7 -> 774
A18: за попередній квартал ця цифра була - 12 | L18: В Таблиці 1 у графі 11 сума чисел у рядках 2-4 - | P18: =SUM('1'!S8:S10) -> 1305
L19: не повинна перевищувати число у рядку 1 - | P19: ='1'!S7 -> 1305
A20: В Таблиці 1 в графі 3 рядку 6 стоїть цифра - 57 | L20: В Таблиці 1 у графі 12 сума чисел у рядках 2-4 - | P20: =SUM('1'!T8:T10) -> 40
A21: за попередній квартал ця цифра була - 71 | L21: не повинна перевищувати число у рядку 1 - | P21: ='1'!T7 -> 40
L22: В Таблиці 1 у графі 13 сума чисел у рядках 2-4 - | P22: =SUM('1'!U8:U10) -> 27
A23: В Таблиці 1 в графі 3 рядку 7 стоїть цифра - 3 | L23: не повинна перевищувати число у рядку 1 - | P23: ='1'!U7 -> 27
A24: за попередній квартал ця цифра була - 4 | L24: В Таблиці 1 у графі 14 сума чисел у рядках 2-4 - | P24: =SUM('1'!V8:V10) -> 6
L25: не повинна перевищувати число у рядку 1 - | P25: ='1'!V7 -> 6
A26: В Таблиці 1 в графі 3 рядку 10 стоїть цифра - 7 | L26: В Таблиці 1 у графі 15 сума чисел у рядках 2-4 - | P26: =SUM('1'!W8:W10) -> 4
A27: за попередній квартал ця цифра була - 8 | L27: не повинна перевищувати число у рядку 1 - | P27: ='1'!W7 -> 4
L28: В Таблиці 1 у графі 16 сума чисел у рядках 2-4 - | P28: =SUM('1'!X8:X10) -> 0
A29: В Таблиці 1 в графі 3 рядку 11 стоїть цифра - 5 | L29: не повинна перевищувати число у рядку 1 - | P29: ='1'!X7 -> 0
A30: за попередній квартал ця цифра була - 7 | L30: В Таблиці 1 у графі 17 сума чисел у рядках 2-4 - | P30: =SUM('1'!Y8:Y10) -> 0
L31: не повинна перевищувати число у рядку 1 - | P31: ='1'!Y7 -> 0
A32: В Таблиці 1 в графі 3 рядку 15 стоїть цифра - 1 | L32: В Таблиці 1 у графі 18 сума чисел у рядках 2-4 - | P32: =SUM('1'!Z8:Z10) -> 0
A33: за попередній квартал ця цифра була - 5 | L33: не повинна перевищувати число у рядку 1 - | P33: ='1'!Z7 -> 0
L34: В Таблиці 1 у графі 19 сума чисел у рядках 2-4 - | P34: =SUM('1'!AA8:AA10) -> 0
A35: В Таблиці 1 в графі 3 рядку 16 стоїть цифра - 1 | L35: не повинна перевищувати число у рядку 1 - | P35: ='1'!AA7 -> 0
A36: за попередній квартал ця цифра була - 2 | L36: В Таблиці 1 у графі 20 сума чисел у рядках 2-4 - | P36: =SUM('1'!AB8:AB10) -> 922
L37: не повинна перевищувати число у рядку 1 - | P37: ='1'!AB7 -> 922
A38: В Таблиці 1 в графі 3 рядку 19 стоїть цифра - 30 | L38: В Таблиці 1 у графі 21 сума чисел у рядках 2-4 - | P38: =SUM('1'!AC8:AC10) -> 153
A39: за попередній квартал ця цифра була - 37 | L39: не повинна перевищувати число у рядку 1 - | P39: ='1'!AC7 -> 153
L40: В Таблиці 1 у графі 22 сума чисел у рядках 2-4 - | P40: =SUM('1'!AD8:AD10) -> 10513.53
A41: В Таблиці 1 в графі 3 рядку 20 стоїть цифра - 29 | L41: не повинна перевищувати число у рядку 1 - | P41: ='1'!AD7 -> 10513.53
A42: за попередній квартал ця цифра була - 35 | L42: В Таблиці 1 у графі 1 сума чисел у рядках 7-9 - | P42: =SUM('1'!E13:E15) -> 0
L43: не повинна перевищувати число у рядку 6 - | P43: ='1'!E12 -> 0
A44: В Таблиці 1 в графі 4 рядку 3 стоїть цифра - 60682 | L44: В Таблиці 1 у графі 2 сума чисел у рядках 7-9 - | P44: =SUM('1'!F13:F15) -> 0
A45: за попередній квартал ця цифра була - 88060 | L45: не повинна перевищувати число у рядку 6 - | P45: ='1'!F12 -> 0
L46: В Таблиці 1 у графі 3 сума чисел у рядках 7-9 - | P46: =SUM('1'!G13:G15) -> 26
A47: В Таблиці 1 в графі 4 рядку 5 стоїть цифра - | L47: не повинна перевищувати число у рядку 6 - | P47: ='1'!G12 -> 57
A48: за попередній квартал ця цифра була - 58 | L48: В Таблиці 1 у графі 4 сума чисел у рядках 7-9 - | P48: =SUM('1'!H13:H15) -> 31559
L49: не повинна перевищувати число у рядку 6 - | P49: ='1'!H12 -> 106370
A50: В Таблиці 1 в графі 4 рядку 7 стоїть цифра - 11063 | L50: В Таблиці 1 у графі 5 сума чисел у рядках 7-9 - | P50: =SUM('1'!I13:I15) -> 66486
A51: за попередній квартал ця цифра була - 11108 | L51: не повинна перевищувати число у рядку 6 - | P51: ='1'!I12 -> 334367
L52: В Таблиці 1 у графі 6 сума чисел у рядках 7-9 - | P52: =SUM('1'!J13:J15) -> 156
A53: В Таблиці 1 в графі 4 рядку 10 стоїть цифра - 43 | L53: не повинна перевищувати число у рядку 6 - | P53: ='1'!J12 -> 406
A54: за попередній квартал ця цифра була - 2541 | L54: В Таблиці 1 у графі 7 сума чисел у рядках 7-9 - | P54: =SUM('1'!K13:K15) -> 20678
L55: не повинна перевищувати число у рядку 6 - | P55: ='1'!K12 -> 197301
A56: В Таблиці 1 в графі 4 рядку 11 стоїть цифра - 35 | L56: В Таблиці 1 у графі 8 сума чисел у рядках 7-9 - | P56: =SUM('1'!L13:L15) -> 632
A57: за попередній квартал ця цифра була - 2536 | L57: не повинна перевищувати число у рядку 6 - | P57: ='1'!L12 -> 9467
L58: В Таблиці 1 у графі 9 сума чисел у рядках 7-9 - | P58: =SUM('1'!M13:M15) -> 4148
A59: В Таблиці 1 в графі 4 рядку 15 стоїть цифра - 1 | L59: не повинна перевищувати число у рядку 6 - | P59: ='1'!M12 -> 8907
A60: за попередній квартал ця цифра була - 40 | L60: В Таблиці 1 у графі 10 сума чисел у рядках 7-9 - | P60: =SUM('1'!R13:R15) -> 183
L61: не повинна перевищувати число у рядку 6 - | P61: ='1'!R12 -> 481
A62: В Таблиці 1 в графі 4 рядку 16 стоїть цифра - 1 | L62: В Таблиці 1 у графі 11 сума чисел у рядках 7-9 - | P62: =SUM('1'!S13:S15) -> 110
A63: за попередній квартал ця цифра була - 24 | L63: не повинна перевищувати число у рядку 6 - | P63: ='1'!S12 -> 1291
L64: В Таблиці 1 у графі 12 сума чисел у рядках 7-9 - | P64: =SUM('1'!T13:T15) -> 11
A65: В Таблиці 1 у графі 22 сума чисел у рядках 2-4 - | E65: 10513.53 | L65: не повинна перевищувати число у рядку 6 - | P65: ='1'!T12 -> 31
A66: не повинна перевищувати число у рядку 1 - | E66: 10513.53 | L66: В Таблиці 1 у графі 13 сума чисел у рядках 7-9 - | P66: =SUM('1'!U13:U15) -> 7
L67: не повинна перевищувати число у рядку 6 - | P67: ='1'!U12 -> 20
C68: В звіті допущено 20 помилок. | L68: В Таблиці 1 у графі 14 сума чисел у рядках 7-9 - | P68: =SUM('1'!V13:V15) -> 3
L69: не повинна перевищувати число у рядку 6 - | P69: ='1'!V12 -> 6
L70: В Таблиці 1 у графі 15 сума чисел у рядках 7-9 - | P70: =SUM('1'!W13:W15) -> 2
L71: не повинна перевищувати число у рядку 6 - | P71: ='1'!W12 -> 4
L72: В Таблиці 1 у графі 16 сума чисел у рядках 7-9 - | P72: =SUM('1'!X13:X15) -> 0
L73: не повинна перевищувати число у рядку 6 - | P73: ='1'!X12 -> 0
L74: В Таблиці 1 у графі 17 сума чисел у рядках 7-9 - | P74: =SUM('1'!Y13:Y15) -> 0
L75: не повинна перевищувати число у рядку 6 - | P75: ='1'!Y12 -> 0
L76: В Таблиці 1 у графі 18 сума чисел у рядках 7-9 - | P76: =SUM('1'!Z13:Z15) -> 0
L77: не повинна перевищувати число у рядку 6 - | P77: ='1'!Z12 -> 0
L78: В Таблиці 1 у графі 19 сума чисел у рядках 7-9 - | P78: =SUM('1'!AA13:AA15) -> 0
L79: не повинна перевищувати число у рядку 6 - | P79: ='1'!AA12 -> 0
L80: В Таблиці 1 у графі 20 сума чисел у рядках 7-9 - | P80: =SUM('1'!AB13:AB15) -> 369
L81: не повинна перевищувати число у рядку 6 - | P81: ='1'!AB12 -> 619
L82: В Таблиці 1 у графі 21 сума чисел у рядках 7-9 - | P82: =SUM('1'!AC13:AC15) -> 0
L83: не повинна перевищувати число у рядку 6 - | P83: ='1'!AC12 -> 0
L84: В Таблиці 1 у графі 22 сума чисел у рядках 7-9 - | P84: =SUM('1'!AD13:AD15) -> 43.53
L85: не повинна перевищувати число у рядку 6 - | P85: ='1'!AD12 -> 10451.53
L86: В Таблиці 1 у графі 23 сума чисел у рядках 7-9 - | P86: =SUM('1'!AE13:AE15) -> 51
L87: не повинна перевищувати число у рядку 6 - | P87: ='1'!AE12 -> 75
L88: В Таблиці 1 у графі 3 число у рядку 11 - | P88: ='1'!G17 -> 5
L89: не повинно перевищувати число у рядку 10 - | P89: ='1'!G16 -> 7
L90: В Таблиці 1 у графі 4 число у рядку 11 - | P90: ='1'!H17 -> 35
L91: не повинно перевищувати число у рядку 10 - | P91: ='1'!H16 -> 43
L92: В Таблиці 1 у графі 5 число у рядку 11 - | P92: ='1'!I17 -> 5834
L93: не повинно перевищувати число у рядку 10 - | P93: ='1'!I16 -> 6139
L94: В Таблиці 1 у графі 6 число у рядку 11 - | P94: ='1'!J17 -> 57
L95: не повинно перевищувати число у рядку 10 - | P95: ='1'!J16 -> 76
L96: В Таблиці 1 у графі 7 число у рядку 11 - | P96: ='1'!K17 -> 281
L97: не повинно перевищувати число у рядку 10 - | P97: ='1'!K16 -> 484
L98: В Таблиці 1 у графі 8 число у рядку 11 - | P98: ='1'!L17 -> 15
L99: не повинно перевищувати число у рядку 10 - | P99: ='1'!L16 -> 19
L100: В Таблиці 1 у графі 9 число у рядку 11 - | P100: ='1'!M17 -> 115
L101: не повинно перевищувати число у рядку 10 - | P101: ='1'!M16 -> 292
L102: В Таблиці 1 у графі 12 число у рядку 11 - | P102: ='1'!T17 -> 0
L103: не повинно перевищувати число у рядку 10 - | P103: ='1'!T16 -> 0
L104: В Таблиці 1 у графі 13 число у рядку 11 - | P104: ='1'!U17 -> 0
L105: не повинно перевищувати число у рядку 10 - | P105: ='1'!U16 -> 0
L106: В Таблиці 1 у графі 14 число у рядку 11 - | P106: ='1'!V17 -> 0
L107: не повинно перевищувати число у рядку 10 - | P107: ='1'!V16 -> 0
L108: В Таблиці 1 у графі 15 число у рядку 11 - | P108: ='1'!W17 -> 0
L109: не повинно перевищувати число у рядку 10 - | P109: ='1'!W16 -> 0
L110: В Таблиці 1 у графі 16 число у рядку 11 - | P110: ='1'!X17 -> 0
L111: не повинно перевищувати число у рядку 10 - | P111: ='1'!X16 -> 0
L112: В Таблиці 1 у графі 17 число у рядку 11 - | P112: ='1'!Y17 -> 0
L113: не повинно перевищувати число у рядку 10 - | P113: ='1'!Y16 -> 0
L114: В Таблиці 1 у графі 18 число у рядку 11 - | P114: ='1'!Z17 -> 0
L115: не повинно перевищувати число у рядку 10 - | P115: ='1'!Z16 -> 0
L116: В Таблиці 1 у графі 19 число у рядку 11 - | P116: ='1'!AA17 -> 0
L117: не повинно перевищувати число у рядку 10 - | P117: ='1'!AA16 -> 0
L118: В Таблиці 1 у графі 20 число у рядку 11 - | P118: ='1'!AB17 -> 0
L119: не повинно перевищувати число у рядку 10 - | P119: ='1'!AB16 -> 0
L120: В Таблиці 1 у графі 21 число у рядку 11 - | P120: ='1'!AC17 -> 0
L121: не повинно перевищувати число у рядку 10 - | P121: ='1'!AC16 -> 0
L122: В Таблиці 1 у графі 22 число у рядку 11 - | P122: ='1'!AD17 -> 0
L123: не повинно перевищувати число у рядку 10 - | P123: ='1'!AD16 -> 0
L124: В Таблиці 1 у графі 23 число у рядку 11 - | P124: ='1'!AE17 -> 0
L125: не повинно перевищувати число у рядку 10 - | P125: ='1'!AE16 -> 0
L126: В Таблиці 1 у графі 1 число у рядку 12 - | P126: ='1'!E18 -> 0
L127: не повинно перевищувати число у рядку 10 - | P127: ='1'!E16 -> 0
L128: В Таблиці 1 у графі 2 число у рядку 12 - | P128: ='1'!F18 -> 0
L129: не повинно перевищувати число у рядку 10 - | P129: ='1'!F16 -> 0
L130: В Таблиці 1 у графі 3 число у рядку 12 - | P130: ='1'!G18 -> 1
L131: не повинно перевищувати число у рядку 10 - | P131: ='1'!G16 -> 7
L132: В Таблиці 1 у графі 4 число у рядку 12 - | P132: ='1'!H18 -> 11
L133: не повинно перевищувати число у рядку 10 - | P133: ='1'!H16 -> 43
L134: В Таблиці 1 у графі 5 число у рядку 12 - | P134: ='1'!I18 -> 11
L135: не повинно перевищувати число у рядку 10 - | P135: ='1'!I16 -> 6139
L136: В Таблиці 1 у графі 6 число у рядку 12 - | P136: ='1'!J18 -> 0
L137: не повинно перевищувати число у рядку 10 - | P137: ='1'!J16 -> 76
L138: В Таблиці 1 у графі 7 число у рядку 12 - | P138: ='1'!K18 -> 0
L139: не повинно перевищувати число у рядку 10 - | P139: ='1'!K16 -> 484
L140: В Таблиці 1 у графі 8 число у рядку 12 - | P140: ='1'!L18 -> 0
L141: не повинно перевищувати число у рядку 10 - | P141: ='1'!L16 -> 19
L142: В Таблиці 1 у графі 9 число у рядку 12 - | P142: ='1'!M18 -> 0
L143: не повинно перевищувати число у рядку 10 - | P143: ='1'!M16 -> 292
L144: В Таблиці 1 у графі 10 число у рядку 12 - | P144: ='1'!R18 -> 0
L145: не повинно перевищувати число у рядку 10 - | P145: ='1'!R16 -> 25
L146: В Таблиці 1 у графі 11 число у рядку 12 - | P146: ='1'!S18 -> 0
L147: не повинно перевищувати число у рядку 10 - | P147: ='1'!S16 -> 76
L148: В Таблиці 1 у графі 12 число у рядку 12 - | P148: ='1'!T18 -> 0
L149: не повинно перевищувати число у рядку 10 - | P149: ='1'!T16 -> 0
L150: В Таблиці 1 у графі 13 число у рядку 12 - | P150: ='1'!U18 -> 0
L151: не повинно перевищувати число у рядку 10 - | P151: ='1'!U16 -> 0
L152: В Таблиці 1 у графі 14 число у рядку 12 - | P152: ='1'!V18 -> 0
L153: не повинно перевищувати число у рядку 10 - | P153: ='1'!V16 -> 0
L154: В Таблиці 1 у графі 15 число у рядку 12 - | P154: ='1'!W18 -> 0
L155: не повинно перевищувати число у рядку 10 - | P155: ='1'!W16 -> 0
L156: В Таблиці 1 у графі 16 число у рядку 12 - | P156: ='1'!X18 -> 0
L157: не повинно перевищувати число у рядку 10 - | P157: ='1'!X16 -> 0
L158: В Таблиці 1 у графі 17 число у рядку 12 - | P158: ='1'!Y18 -> 0
L159: не повинно перевищувати число у рядку 10 - | P159: ='1'!Y16 -> 0
L160: В Таблиці 1 у графі 18 число у рядку 12 - | P160: ='1'!Z18 -> 0
L161: не повинно перевищувати число у рядку 10 - | P161: ='1'!Z16 -> 0
L162: В Таблиці 1 у графі 19 число у рядку 12 - | P162: ='1'!AA18 -> 0
L163: не повинно перевищувати число у рядку 10 - | P163: ='1'!AA16 -> 0
L164: В Таблиці 1 у графі 20 число у рядку 12 - | P164: ='1'!AB18 -> 0
L165: не повинно перевищувати число у рядку 10 - | P165: ='1'!AB16 -> 0
L166: В Таблиці 1 у графі 21 число у рядку 12 - | P166: ='1'!AC18 -> 0
L167: не повинно перевищувати число у рядку 10 - | P167: ='1'!AC16 -> 0
L168: В Таблиці 1 у графі 22 число у рядку 12 - | P168: ='1'!AD18 -> 0
L169: не повинно перевищувати число у рядку 10 - | P169: ='1'!AD16 -> 0
L170: В Таблиці 1 у графі 23 число у рядку 12 - | P170: ='1'!AE18 -> 0
L171: не повинно перевищувати число у рядку 10 - | P171: ='1'!AE16 -> 0
L172: В Таблиці 1 у графі 1 число у рядку 13 - | P172: ='1'!E19 -> 0
L173: не повинно перевищувати число у рядку 10 - | P173: ='1'!E16 -> 0
L174: В Таблиці 1 у графі 2 число у рядку 13 - | P174: ='1'!F19 -> 0
L175: не повинно перевищувати число у рядку 10 - | P175: ='1'!F16 -> 0
L176: В Таблиці 1 у графі 3 число у рядку 13 - | P176: ='1'!G19 -> 0
L177: не повинно перевищувати число у рядку 10 - | P177: ='1'!G16 -> 7
L178: В Таблиці 1 у графі 4 число у рядку 13 - | P178: ='1'!H19 -> 0
L179: не повинно перевищувати число у рядку 10 - | P179: ='1'!H16 -> 43
L180: В Таблиці 1 у графі 5 число у рядку 13 - | P180: ='1'!I19 -> 0
L181: не повинно перевищувати число у рядку 10 - | P181: ='1'!I16 -> 6139
L182: В Таблиці 1 у графі 6 число у рядку 13 - | P182: ='1'!J19 -> 0
L183: не повинно перевищувати число у рядку 10 - | P183: ='1'!J16 -> 76
L184: В Таблиці 1 у графі 7 число у рядку 13 - | P184: ='1'!K19 -> 0
L185: не повинно перевищувати число у рядку 10 - | P185: ='1'!K16 -> 484
L186: В Таблиці 1 у графі 8 число у рядку 13 - | P186: ='1'!L19 -> 0
L187: не повинно перевищувати число у рядку 10 - | P187: ='1'!L16 -> 19
L188: В Таблиці 1 у графі 9 число у рядку 13 - | P188: ='1'!M19 -> 0
L189: не повинно перевищувати число у рядку 10 - | P189: ='1'!M16 -> 292
L190: В Таблиці 1 у графі 10 число у рядку 13 - | P190: ='1'!R19 -> 0
L191: не повинно перевищувати число у рядку 10 - | P191: ='1'!R16 -> 25
L192: В Таблиці 1 у графі 11 число у рядку 13 - | P192: ='1'!S19 -> 0
L193: не повинно перевищувати число у рядку 10 - | P193: ='1'!S16 -> 76
L194: В Таблиці 1 у графі 12 число у рядку 13 - | P194: ='1'!T19 -> 0
L195: не повинно перевищувати число у рядку 10 - | P195: ='1'!T16 -> 0
L196: В Таблиці 1 у графі 13 число у рядку 13 - | P196: ='1'!U19 -> 0
L197: не повинно перевищувати число у рядку 10 - | P197: ='1'!U16 -> 0
L198: В Таблиці 1 у графі 14 число у рядку 13 - | P198: ='1'!V19 -> 0
L199: не повинно перевищувати число у рядку 10 - | P199: ='1'!V16 -> 0
L200: В Таблиці 1 у графі 15 число у рядку 13 - | P200: ='1'!W19 -> 0
... 1687 more rows

Sheet Довідки
A1: Генеральна прокуратура України
A2: Відділ статистики, ведення Єдиного реєстру досудових розслідувань
A5: АНАЛІТИЧНИЙ ЗБІРНИК
A7: статистичної інформації про роботу прокурора
A8: за 9 місяців 2015 року
A10: ='1'!AK25 -> Прокуратура Чернігівської області
A11: (у розрізі районів)
A13: =G19 -> 2015
A14: РОЗДІЛ 1. Представництво інтересів громадян та держави в судах
A15: Таблиця 1. Усього
A17: Код | B17: Прокуратура | C17: Досудове врегулювання спорів | I17: Розгляд справи судом | O17: Сума за рішеннями, які передано на примусове виконання (тис.грн.) | R17: Кількість справ у яких забезпечено участь прокурора | U17: Сума за рішеннями прийнятими на користь сторони, в інтересах якої прокурор вступив у справу (тис.грн.)
C18: Кількість направлених звернень | F18: Кількість позовів (заяв, скарг, подань), внесених у разі неврегулювання спору | I18: Задоволено позовів, заяв, скарг, подань | L18: Сума по них (тис.грн.)
C19: 2014 | D19: 2015 | E19: % | F19: =C19 -> 2014 | G19: =D19 -> 2015 | H19: % | I19: =F19 -> 2014 | J19: =G19 -> 2015 | K19: % | L19: =I19 -> 2014 | M19: =J19 -> 2015 | N19: % | O19: =L19 -> 2014 | P19: =M19 -> 2015 | Q19: % | R19: =O19 -> 2014 | S19: =P19 -> 2015 | T19: % | U19: =R19 -> 2014 | V19: =S19 -> 2015 | W19: %
A20: 1 | B20: Бахмацького р. | E20: =IF(C20=0,0,IF(D20=0,"-100,0",IF(D20*100/C20<200,ROUND(D20*100/C20-100,1),ROUND(D20/C20,1)&" р"))) -> 0 | H20: =IF(F20=0,0,IF(G20=0,"-100,0",IF(G20*100/F20<200,ROUND(G20*100/F20-100,1),ROUND(G20/F20,1)&" р"))) -> 0 | I20: 22 | J20: 23 | K20: =IF(I20=0,0,IF(J20=0,"-100,0",IF(J20*100/I20<200,ROUND(J20*100/I20-100,1),ROUND(J20/I20,1)&" р"))) -> 4.5 | L20: 1529 | M20: 3808 | N20: =IF(L20=0,0,IF(M20=0,"-100,0",IF(M20*100/L20<200,ROUND(M20*100/L20-100,1),ROUND(M20/L20,1)&" р"))) -> 2,5 р | P20: 138 | Q20: =IF(O20=0,0,IF(P20=0,"-100,0",IF(P20*100/O20<200,ROUND(P20*100/O20-100,1),ROUND(P20/O20,1)&" р"))) -> 0 | R20: 22 | S20: 11 | T20: =IF(R20=0,0,IF(S20=0,"-100,0",IF(S20*100/R20<200,ROUND(S20*100/R20-100,1),ROUND(S20/R20,1)&" р"))) -> -50 | W20: =IF(U20=0,0,IF(V20=0,"-100,0",IF(V20*100/U20<200,ROUND(V20*100/U20-100,1),ROUND(V20/U20,1)&" р"))) -> 0
A21: 2 | B21: Бобровицького р. | E21: 0 | H21: 0 | I21: 9 | J21: 6 | K21: -33.3 | L21: 8890 | M21: 130 | N21: -98.5 | P21: 5 | Q21: 0 | R21: 5 | S21: 14 | T21: 2,8 р | W21: 0
A22: 3 | B22: Борзнянського р. | E22: =IF(C22=0,0,IF(D22=0,"-100,0",IF(D22*100/C22<200,ROUND(D22*100/C22-100,1),ROUND(D22/C22,1)&" р"))) -> 0 | H22: =IF(F22=0,0,IF(G22=0,"-100,0",IF(G22*100/F22<200,ROUND(G22*100/F22-100,1),ROUND(G22/F22,1)&" р"))) -> 0 | I22: 15 | J22: 18 | K22: =IF(I22=0,0,IF(J22=0,"-100,0",IF(J22*100/I22<200,ROUND(J22*100/I22-100,1),ROUND(J22/I22,1)&" р"))) -> 20 | L22: 328 | M22: 4918 | N22: =IF(L22=0,0,IF(M22=0,"-100,0",IF(M22*100/L22<200,ROUND(M22*100/L22-100,1),ROUND(M22/L22,1)&" р"))) -> 15 р | Q22: =IF(O22=0,0,IF(P22=0,"-100,0",IF(P22*100/O22<200,ROUND(P22*100/O22-100,1),ROUND(P22/O22,1)&" р"))) -> 0 | R22: 9 | S22: 5 | T22: =IF(R22=0,0,IF(S22=0,"-100,0",IF(S22*100/R22<200,ROUND(S22*100/R22-100,1),ROUND(S22/R22,1)&" р"))) -> -44.4 | W22: =IF(U22=0,0,IF(V22=0,"-100,0",IF(V22*100/U22<200,ROUND(V22*100/U22-100,1),ROUND(V22/U22,1)&" р"))) -> 0
A23: 4 | B23: Варвинського р. | E23: 0 | H23: 0 | I23: 6 | J23: 8 | K23: 33.3 | L23: 297 | M23: 35 | N23: -88.2 | P23: 19 | Q23: 0 | R23: 5 | S23: 5 | T23: 0 | W23: 0
A24: 5 | B24: Городнянського р. | E24: 0 | H24: 0 | I24: 25 | J24: 29 | K24: 16 | L24: 383 | M24: 5348 | N24: 14 р | P24: 47 | Q24: 0 | R24: 91 | S24: 41 | T24: -54.9 | W24: 0
A25: 6 | B25: Ічнянського р. | E25: 0 | H25: 0 | I25: 18 | J25: 12 | K25: -33.3 | L25: 944 | M25: 190 | N25: -79.9 | P25: 35 | Q25: 0 | R25: 18 | S25: 17 | T25: -5.6 | W25: 0
A26: 7 | B26: Козелецького р. | E26: 0 | H26: 0 | I26: 15 | J26: 28 | K26: 86.7 | L26: 419 | M26: 355 | N26: -15.3 | P26: 187 | Q26: 0 | R26: 14 | S26: 9 | T26: -35.7 | W26: 0
A27: 8 | B27: Коропського р. | E27: 0 | H27: 0 | I27: 11 | J27: 15 | K27: 36.4 | L27: 118 | M27: 242 | N27: 2,1 р | Q27: 0 | R27: 15 | S27: 19 | T27: 26.7 | W27: 0
A28: 9 | B28: Корюківського р. | E28: 0 | H28: 0 | I28: 15 | J28: 20 | K28: 33.3 | L28: 1023 | M28: 15910 | N28: 15,6 р | P28: 219 | Q28: 0 | R28: 17 | S28: 16 | T28: -5.9 | W28: 0
A29: 10 | B29: Куликівського р. | E29: 0 | H29: 0 | I29: 11 | J29: 36 | K29: 3,3 р | L29: 375 | M29: 13225 | N29: 35,3 р | P29: 20 | Q29: 0 | R29: 10 | S29: 34 | T29: 3,4 р | W29: 0
A30: 11 | B30: Менського р. | E30: 0 | H30: 0 | I30: 29 | J30: 18 | K30: -37.9 | L30: 280 | M30: 4080 | N30: 14,6 р | P30: 79 | Q30: 0 | R30: 24 | S30: 15 | T30: -37.5 | W30: 0
A31: 12 | B31: Ніжинського мр.пр. | E31: 0 | H31: 0 | I31: 59 | J31: 42 | K31: -28.8 | L31: 19056 | M31: 3788 | N31: -80.1 | P31: 2137 | Q31: 0 | R31: 31 | S31: 28 | T31: -9.7 | W31: 0
A32: 13 | B32: Новгород-Сіверського р. | E32: 0 | H32: 0 | I32: 18 | J32: 20 | K32: 11.1 | L32: 262 | M32: 1056 | N32: 4 р | P32: 12 | Q32: 0 | R32: 18 | S32: 28 | T32: 55.6 | W32: 0
A33: 14 | B33: Носівського р. | E33: 0 | H33: 0 | I33: 27 | J33: 20 | K33: -25.9 | L33: 37924 | M33: 654 | N33: -98.3 | P33: 59 | Q33: 0 | R33: 13 | S33: 15 | T33: 15.4 | W33: 0
A34: 15 | B34: Прилуцька мр.пр. | E34: 0 | H34: 0 | I34: 29 | J34: 31 | K34: 6.9 | L34: 4570 | M34: 1458 | N34: -68.1 | P34: 1448 | Q34: 0 | R34: 50 | S34: 50 | T34: 0 | W34: 0
A35: 16 | B35: Ріпкинська р. | E35: 0 | H35: 0 | I35: 16 | J35: 19 | K35: 18.8 | L35: 152 | M35: 1048 | N35: 6,9 р | P35: 10 | Q35: 0 | R35: 18 | S35: 23 | T35: 27.8 | W35: 0
A36: 17 | B36: Семенівського р. | E36: 0 | H36: 0 | I36: 6 | J36: 41 | K36: 6,8 р | L36: 212 | M36: 1122 | N36: 5,3 р | P36: 126 | Q36: 0 | R36: 9 | S36: 15 | T36: 66.7 | V36: 14 | W36: 0
A37: 18 | B37: Сосницького р. | E37: 0 | H37: 0 | I37: 4 | J37: 18 | K37: 4,5 р | L37: 130 | M37: 454 | N37: 3,5 р | P37: 44 | Q37: 0 | R37: 6 | S37: 17 | T37: 2,8 р | W37: 0
A38: 19 | B38: Срібнянського р. | E38: 0 | H38: 0 | I38: 5 | J38: 9 | K38: 80 | L38: 251 | M38: 480 | N38: 91.2 | P38: 41 | Q38: 0 | R38: 3 | S38: 6 | T38: 2 р | W38: 0
A39: 20 | B39: Талалаївського р. | E39: 0 | H39: 0 | I39: 14 | J39: 7 | K39: -50 | L39: 472 | M39: 2257 | N39: 4,8 р | P39: 16 | Q39: 0 | R39: 15 | S39: 6 | T39: -60 | W39: 0
A40: 21 | B40: Чернігівського р. | E40: 0 | H40: 0 | I40: 33 | J40: 36 | K40: 9.1 | L40: 993 | M40: 10399 | N40: 10,5 р | P40: 1128 | Q40: 0 | R40: 37 | S40: 50 | T40: 35.1 | W40: 0
A41: 22 | B41: м.Чернігова | E41: 0 | H41: 0 | I41: 120 | J41: 84 | K41: -30 | L41: 43347 | M41: 16534 | N41: -61.9 | P41: 3017 | Q41: 0 | R41: 179 | S41: 77 | T41: -57 | U41: 1836 | V41: 169 | W41: -90.8
A42: 23 | B42: Щорського р. | E42: 0 | H42: 0 | I42: 7 | J42: 11 | K42: 57.1 | L42: 123 | M42: 371 | N42: 3 р | Q42: 0 | R42: 16 | S42: 19 | T42: 18.8 | W42: 0
A43: 24 | B43: Апарат прокуратури | E43: 0 | H43: 0 | I43: 31 | J43: 69 | K43: 2,2 р | L43: 41164 | M43: 122683 | N43: 3 р | P43: 1441 | Q43: 0 | R43: 92 | S43: 254 | T43: 2,8 р | U43: 18869 | V43: 1122 | W43: -94.1
A44: 25 | B44: Усього по області | D44: 0 | E44: =IF(C44=0,0,IF(D44=0,"-100,0",IF(D44*100/C44<200,ROUND(D44*100/C44-100,1),ROUND(D44/C44,1)&" р"))) -> 0 | G44: 0 | H44: =IF(F44=0,0,IF(G44=0,"-100,0",IF(G44*100/F44<200,ROUND(G44*100/F44-100,1),ROUND(G44/F44,1)&" р"))) -> 0 | I44: 561 | J44: 620 | K44: =IF(I44=0,0,IF(J44=0,"-100,0",IF(J44*100/I44<200,ROUND(J44*100/I44-100,1),ROUND(J44/I44,1)&" р"))) -> 10.5 | L44: 163522 | M44: 210545 | N44: =IF(L44=0,0,IF(M44=0,"-100,0",IF(M44*100/L44<200,ROUND(M44*100/L44-100,1),ROUND(M44/L44,1)&" р"))) -> 28.8 | P44: 10228 | Q44: =IF(O44=0,0,IF(P44=0,"-100,0",IF(P44*100/O44<200,ROUND(P44*100/O44-100,1),ROUND(P44/O44,1)&" р"))) -> 0 | R44: 720 | S44: 774 | T44: =IF(R44=0,0,IF(S44=0,"-100,0",IF(S44*100/R44<200,ROUND(S44*100/R44-100,1),ROUND(S44/R44,1)&" р"))) -> 7.5 | U44: 20705 | V44: 1305 | W44: =IF(U44=0,0,IF(V44=0,"-100,0",IF(V44*100/U44<200,ROUND(V44*100/U44-100,1),ROUND(V44/U44,1)&" р"))) -> -93.7
A45: РОЗДІЛ 1. Представництво інтересів громадян та держави в судах
A46: Таблиця 2. Усього
A48: Код | B48: Прокуратура | C48: Апеляційні скарги | I48: Касаційні скарги | O48: Сума за рішеннями, скасованими за скаргами, заявами прокурора (тис.грн.) | R48: Площа повернутих земель та незаконне надання яких попереджено
C49: Розглянуто | E49: Задоволено | G49: Питома вага | I49: Розглянуто | K49: Задоволено | M49: Питома вага
C50: =C19 -> 2014 | D50: =D19 -> 2015 | E50: =C50 -> 2014 | F50: 2015 | G50: 2014 | H50: 2015 | I50: 2014 | J50: 2015 | K50: 2014 | L50: 2015 | M50: 2014 | N50: 2015 | O50: 2014 | P50: 2015 | Q50: % | R50: =O50 -> 2014 | S50: =P50 -> 2015 | T50: %
A51: 1 | B51: Бахмацького р. | G51: =IF(C51=0,0,E51*100/C51) -> 0 | H51: =IF(D51=0,0,F51*100/D51) -> 0 | M51: =IF(I51=0,0,K51*100/I51) -> 0 | N51: =IF(J51=0,0,L51*100/J51) -> 0 | Q51: =IF(O51=0,0,IF(P51=0,"-100,0",IF(P51*100/O51<200,ROUND(P51*100/O51-100,1),ROUND(P51/O51,1)&" р"))) -> 0 | S51: 62 | T51: =IF(R51=0,0,IF(S51=0,"-100,0",IF(S51*100/R51<200,ROUND(S51*100/R51-100,1),ROUND(S51/R51,1)&" р"))) -> 0
A52: 2 | B52: Бобровицького р. | G52: =IF(C52=0,0,E52*100/C52) -> 0 | H52: =IF(D52=0,0,F52*100/D52) -> 0 | M52: =IF(I52=0,0,K52*100/I52) -> 0 | N52: =IF(J52=0,0,L52*100/J52) -> 0 | Q52: 0 | T52: 0
A53: 3 | B53: Борзнянського р. | G53: =IF(C53=0,0,E53*100/C53) -> 0 | H53: =IF(D53=0,0,F53*100/D53) -> 0 | M53: =IF(I53=0,0,K53*100/I53) -> 0 | N53: =IF(J53=0,0,L53*100/J53) -> 0 | Q53: =IF(O53=0,0,IF(P53=0,"-100,0",IF(P53*100/O53<200,ROUND(P53*100/O53-100,1),ROUND(P53/O53,1)&" р"))) -> 0 | T53: =IF(R53=0,0,IF(S53=0,"-100,0",IF(S53*100/R53<200,ROUND(S53*100/R53-100,1),ROUND(S53/R53,1)&" р"))) -> 0
A54: 4 | B54: Варвинського р. | G54: 0 | H54: 0 | M54: 0 | N54: 0 | Q54: 0 | T54: 0
A55: 5 | B55: Городнянського р. | D55: 2 | F55: 2 | G55: 0 | H55: 100 | M55: 0 | N55: 0 | Q55: 0 | S55: 653 | T55: 0
A56: 6 | B56: Ічнянського р. | D56: 1 | F56: 1 | G56: 0 | H56: 100 | M56: 0 | N56: 0 | Q56: 0 | S56: 12 | T56: 0
A57: 7 | B57: Козелецького р. | G57: 0 | H57: 0 | M57: 0 | N57: 0 | Q57: 0 | S57: 38 | T57: 0
A58: 8 | B58: Коропського р. | G58: 0 | H58: 0 | M58: 0 | N58: 0 | Q58: 0 | T58: 0
A59: 9 | B59: Корюківського р. | G59: 0 | H59: 0 | M59: 0 | N59: 0 | Q59: 0 | S59: 591 | T59: 0
A60: 10 | B60: Куликівського р. | G60: 0 | H60: 0 | M60: 0 | N60: 0 | Q60: 0 | S60: 54 | T60: 0
A61: 11 | B61: Менського р. | D61: 1 | G61: 0 | H61: 0 | M61: 0 | N61: 0 | Q61: 0 | S61: 183 | T61: 0
A62: 12 | B62: Ніжинського мр.пр. | C62: 1 | G62: 0 | H62: 0 | M62: 0 | N62: 0 | Q62: 0 | T62: 0
A63: 13 | B63: Новгород-Сіверського р. | C63: 1 | E63: 1 | G63: 100 | H63: 0 | M63: 0 | N63: 0 | Q63: 0 | T63: 0
A64: 14 | B64: Носівського р. | G64: 0 | H64: 0 | M64: 0 | N64: 0 | Q64: 0 | S64: 223 | T64: 0
A65: 15 | B65: Прилуцька мр.пр. | G65: 0 | H65: 0 | M65: 0 | N65: 0 | Q65: 0 | T65: 0
A66: 16 | B66: Ріпкинська р. | G66: 0 | H66: 0 | M66: 0 | N66: 0 | Q66: 0 | S66: 43.53 | T66: 0
A67: 17 | B67: Семенівського р. | G67: 0 | H67: 0 | M67: 0 | N67: 0 | Q67: 0 | S67: 40 | T67: 0
A68: 18 | B68: Сосницького р. | G68: 0 | H68: 0 | M68: 0 | N68: 0 | Q68: 0 | T68: 0
A69: 19 | B69: Срібнянського р. | G69: 0 | H69: 0 | M69: 0 | N69: 0 | Q69: 0 | S69: 7 | T69: 0
A70: 20 | B70: Талалаївського р. | G70: 0 | H70: 0 | M70: 0 | N70: 0 | Q70: 0 | S70: 161 | T70: 0
A71: 21 | B71: Чернігівського р. | G71: 0 | H71: 0 | M71: 0 | N71: 0 | Q71: 0 | S71: 23 | T71: 0
A72: 22 | B72: м.Чернігова | C72: 2 | D72: 2 | F72: 1 | G72: 0 | H72: 50 | M72: 0 | N72: 0 | Q72: 0 | T72: 0
A73: 23 | B73: Щорського р. | G73: 0 | H73: 0 | M73: 0 | N73: 0 | Q73: 0 | S73: 90 | T73: 0
A74: 24 | B74: Апарат прокуратури | C74: 12 | D74: 34 | E74: 9 | F74: 23 | G74: 75 | H74: 67.64705882 | I74: 2 | J74: 6 | L74: 4 | M74: 0 | N74: 66.66666667 | O74: 24 | P74: 922 | Q74: 38,4 р | S74: 8333 | T74: 0
A75: 25 | B75: Усього по області | C75: 16 | D75: 40 | E75: 10 | F75: 27 | G75: 62.5 | H75: 67.5 | I75: 2 | J75: 6 | L75: 4 | M75: 0 | N75: 66.66666667 | O75: 24 | P75: 922 | Q75: =IF(O75=0,0,IF(P75=0,"-100,0",IF(P75*100/O75<200,ROUND(P75*100/O75-100,1),ROUND(P75/O75,1)&" р"))) -> 38,4 р | S75: 10513.53 | T75: =IF(R75=0,0,IF(S75=0,"-100,0",IF(S75*100/R75<200,ROUND(S75*100/R75-100,1),ROUND(S75/R75,1)&" р"))) -> 0
A76: РОЗДІЛ 1. Представництво інтересів громадян та держави в судах
A77: Таблиця 3. В інтересах громадян
A79: Код | B79: Прокуратура | C79: Досудове врегулювання спорів | I79: Розгляд справи судом | O79: Сума за рішеннями, які передано на примусове виконання (тис.грн.) | R79: Кількість справ у яких забезпечено участь прокурора | U79: Сума за рішеннями прийнятими на користь сторони, в інтересах якої прокурор вступив у справу (тис.грн.)
C80: Кількість направлених звернень | F80: Кількість позовів (заяв, скарг, подань), внесених у разі неврегулювання спору | I80: Задоволено позовів, заяв, скарг, подань | L80: Сума по них (тис.грн.)
C81: =C50 -> 2014 | D81: =D50 -> 2015 | E81: % | F81: =C81 -> 2014 | G81: =D81 -> 2015 | H81: % | I81: =F81 -> 2014 | J81: =G81 -> 2015 | K81: % | L81: =I81 -> 2014 | M81: =J81 -> 2015 | N81: % | O81: =L81 -> 2014 | P81: =M81 -> 2015 | Q81: % | R81: =O81 -> 2014 | S81: =P81 -> 2015 | T81: % | U81: =R81 -> 2014 | V81: =S81 -> 2015 | W81: %
A82: 1 | B82: Бахмацького р. | E82: =IF(C82=0,0,IF(D82=0,"-100,0",IF(D82*100/C82<200,ROUND(D82*100/C82-100,1),ROUND(D82/C82,1)&" р"))) -> 0 | H82: =IF(F82=0,0,IF(G82=0,"-100,0",IF(G82*100/F82<200,ROUND(G82*100/F82-100,1),ROUND(G82/F82,1)&" р"))) -> 0 | I82: 3 | J82: 2 | K82: =IF(I82=0,0,IF(J82=0,"-100,0",IF(J82*100/I82<200,ROUND(J82*100/I82-100,1),ROUND(J82/I82,1)&" р"))) -> -33.3 | M82: 14 | N82: =IF(L82=0,0,IF(M82=0,"-100,0",IF(M82*100/L82<200,ROUND(M82*100/L82-100,1),ROUND(M82/L82,1)&" р"))) -> 0 | P82: 8 | Q82: =IF(O82=0,0,IF(P82=0,"-100,0",IF(P82*100/O82<200,ROUND(P82*100/O82-100,1),ROUND(P82/O82,1)&" р"))) -> 0 | S82: 8 | T82: =IF(R82=0,0,IF(S82=0,"-100,0",IF(S82*100/R82<200,ROUND(S82*100/R82-100,1),ROUND(S82/R82,1)&" р"))) -> 0 | W82: =IF(U82=0,0,IF(V82=0,"-100,0",IF(V82*100/U82<200,ROUND(V82*100/U82-100,1),ROUND(V82/U82,1)&" р"))) -> 0
A83: 2 | B83: Бобровицького р. | E83: 0 | H83: 0 | I83: 2 | K83: -100,0 | L83: 180 | N83: -100,0 | Q83: 0 | S83: 3 | T83: 0 | W83: 0
A84: 3 | B84: Борзнянського р. | E84: 0 | H84: 0 | I84: 2 | J84: 9 | K84: 4,5 р | M84: 36 | N84: 0 | Q84: 0 | S84: 5 | T84: 0 | W84: 0
A85: 4 | B85: Варвинського р. | E85: 0 | H85: 0 | J85: 2 | K85: 0 | M85: 16 | N85: 0 | Q85: 0 | S85: 2 | T85: 0 | W85: 0
A86: 5 | B86: Городнянського р. | E86: 0 | H86: 0 | I86: 2 | J86: 10 | K86: 5 р | M86: 73 | N86: 0 | P86: 40 | Q86: 0 | S86: 28 | T86: 0 | W86: 0
A87: 6 | B87: Ічнянського р. | E87: 0 | H87: 0 | I87: 1 | K87: -100,0 | N87: 0 | Q87: 0 | S87: 6 | T87: 0 | W87: 0
A88: 7 | B88: Козелецького р. | E88: 0 | H88: 0 | I88: 1 | J88: 6 | K88: 6 р | M88: 24 | N88: 0 | P88: 24 | Q88: 0 | S88: 2 | T88: 0 | W88: 0
A89: 8 | B89: Коропського р. | E89: 0 | H89: 0 | I89: 1 | J89: 2 | K89: 2 р | M89: 12 | N89: 0 | Q89: 0 | S89: 6 | T89: 0 | W89: 0
A90: 9 | B90: Корюківського р. | E90: 0 | H90: 0 | I90: 1 | J90: 2 | K90: 2 р | M90: 3 | N90: 0 | Q90: 0 | S90: 9 | T90: 0 | W90: 0
A91: 10 | B91: Куликівського р. | E91: 0 | H91: 0 | I91: 1 | J91: 1 | K91: 0 | M91: 11342 | N91: 0 | Q91: 0 | S91: 4 | T91: 0 | W91: 0
A92: 11 | B92: Менського р. | E92: 0 | H92: 0 | I92: 6 | J92: 6 | K92: 0 | L92: 5 | M92: 12 | N92: 2,4 р | P92: 12 | Q92: 0 | S92: 7 | T92: 0 | W92: 0
A93: 12 | B93: Ніжинського мр.пр. | E93: 0 | H93: 0 | I93: 27 | J93: 13 | K93: -51.9 | L93: 208 | M93: 170 | N93: -18.3 | P93: 137 | Q93: 0 | S93: 20 | T93: 0 | W93: 0
A94: 13 | B94: Новгород-Сіверського р. | E94: 0 | H94: 0 | I94: 1 | J94: 1 | K94: 0 | N94: 0 | Q94: 0 | S94: 15 | T94: 0 | W94: 0
A95: 14 | B95: Носівського р. | E95: 0 | H95: 0 | I95: 1 | J95: 3 | K95: 3 р | M95: 204 | N95: 0 | Q95: 0 | S95: 6 | T95: 0 | W95: 0
A96: 15 | B96: Прилуцька мр.пр. | E96: 0 | H96: 0 | I96: 1 | J96: 4 | K96: 4 р | M96: 80 | N96: 0 | P96: 78 | Q96: 0 | S96: 38 | T96: 0 | W96: 0
A97: 16 | B97: Ріпкинська р. | E97: 0 | H97: 0 | I97: 1 | J97: 6 | K97: 6 р | M97: 11 | N97: 0 | Q97: 0 | S97: 13 | T97: 0 | W97: 0
A98: 17 | B98: Семенівського р. | E98: 0 | H98: 0 | I98: 1 | J98: 34 | K98: 34 р | M98: 90 | N98: 0 | Q98: 0 | S98: 11 | T98: 0 | V98: 14 | W98: 0
A99: 18 | B99: Сосницького р. | E99: 0 | H99: 0 | J99: 1 | K99: 0 | N99: 0 | Q99: 0 | S99: 3 | T99: 0 | W99: 0
A100: 19 | B100: Срібнянського р. | E100: 0 | H100: 0 | J100: 1 | K100: 0 | M100: 8 | N100: 0 | P100: 8 | Q100: 0 | S100: 2 | T100: 0 | W100: 0
A101: 20 | B101: Талалаївського р. | E101: 0 | H101: 0 | I101: 7 | J101: 3 | K101: -57.1 | L101: 56 | M101: 16 | N101: -71.4 | P101: 16 | Q101: 0 | S101: 3 | T101: 0 | W101: 0
A102: 21 | B102: Чернігівського р. | E102: 0 | H102: 0 | I102: 14 | J102: 4 | K102: -71.4 | L102: 84 | M102: 11 | N102: -86.9 | P102: 84 | Q102: 0 | S102: 22 | T102: 0 | W102: 0
A103: 22 | B103: м.Чернігова | E103: 0 | H103: 0 | I103: 47 | J103: 37 | K103: -21.3 | L103: 401 | M103: 363 | N103: -9.5 | P103: 349 | Q103: 0 | S103: 30 | T103: 0 | W103: 0
A104: 23 | B104: Щорського р. | E104: 0 | H104: 0 | I104: 1 | J104: 3 | K104: 3 р | M104: 25 | N104: 0 | Q104: 0 | S104: 13 | T104: 0 | W104: 0
A105: 24 | B105: Апарат прокуратури | E105: 0 | H105: 0 | J105: 4 | K105: 0 | M105: 403 | N105: 0 | P105: 324 | Q105: 0 | S105: 18 | T105: 0 | W105: 0
A106: 25 | B106: Усього по області | D106: 0 | E106: 0 | G106: 0 | H106: 0 | I106: 126 | J106: 154 | K106: 22.2 | L106: 941 | M106: 12913 | N106: 13,7 р | P106: 1080 | Q106: 0 | S106: 274 | T106: 0 | V106: 14 | W106: 0
A107: РОЗДІЛ 1. Представництво інтересів громадян та держави в судах
A108: Таблиця 4. В інтересах громадян
A110: Код | B110: Прокуратура | C110: Апеляційні скарги | I110: Касаційні скарги | O110: Сума за рішеннями, скасованими за скаргами, заявами прокурора (тис.грн.) | R110: Площа повернутих земель та незаконне надання яких попереджено
C111: Розглянуто | E111: Задоволено | G111: Питома вага | I111: Розглянуто | K111: Задоволено | M111: Питома вага
C112: =C81 -> 2014 | D112: =D81 -> 2015 | E112: =C112 -> 2014 | F112: 2015 | G112: 2014 | H112: 2015 | I112: 2014 | J112: 2015 | K112: 2014 | L112: 2015 | M112: 2014 | N112: 2015 | O112: 2014 | P112: 2015 | Q112: % | R112: =O112 -> 2014 | S112: =P112 -> 2015 | T112: %
A113: 1 | B113: Бахмацького р. | G113: =IF(C113=0,0,E113*100/C113) -> 0 | H113: =IF(D113=0,0,F113*100/D113) -> 0 | M113: =IF(I113=0,0,K113*100/I113) -> 0 | N113: =IF(J113=0,0,L113*100/J113) -> 0 | Q113: =IF(O113=0,0,IF(P113=0,"-100,0",IF(P113*100/O113<200,ROUND(P113*100/O113-100,1),ROUND(P113/O113,1)&" р"))) -> 0 | T113: =IF(R113=0,0,IF(S113=0,"-100,0",IF(S113*100/R113<200,ROUND(S113*100/R113-100,1),ROUND(S113/R113,1)&" р"))) -> 0
A114: 2 | B114: Бобровицького р. | G114: =IF(C114=0,0,E114*100/C114) -> 0 | H114: =IF(D114=0,0,F114*100/D114) -> 0 | M114: =IF(I114=0,0,K114*100/I114) -> 0 | N114: =IF(J114=0,0,L114*100/J114) -> 0 | Q114: 0 | T114: 0
A115: 3 | B115: Борзнянського р. | G115: 0 | H115: 0 | M115: 0 | N115: 0 | Q115: 0 | T115: 0
A116: 4 | B116: Варвинського р. | G116: 0 | H116: 0 | M116: 0 | N116: 0 | Q116: 0 | T116: 0
A117: 5 | B117: Городнянського р. | D117: 1 | F117: 1 | G117: 0 | H117: 100 | M117: 0 | N117: 0 | Q117: 0 | T117: 0
A118: 6 | B118: Ічнянського р. | G118: 0 | H118: 0 | M118: 0 | N118: 0 | Q118: 0 | T118: 0
A119: 7 | B119: Козелецького р. | G119: 0 | H119: 0 | M119: 0 | N119: 0 | Q119: 0 | T119: 0
A120: 8 | B120: Коропського р. | G120: 0 | H120: 0 | M120: 0 | N120: 0 | Q120: 0 | T120: 0
A121: 9 | B121: Корюківського р. | G121: 0 | H121: 0 | M121: 0 | N121: 0 | Q121: 0 | T121: 0
A122: 10 | B122: Куликівського р. | G122: 0 | H122: 0 | M122: 0 | N122: 0 | Q122: 0 | S122: 54 | T122: 0
A123: 11 | B123: Менського р. | G123: 0 | H123: 0 | M123: 0 | N123: 0 | Q123: 0 | T123: 0
A124: 12 | B124: Ніжинського мр.пр. | G124: 0 | H124: 0 | M124: 0 | N124: 0 | Q124: 0 | T124: 0
A125: 13 | B125: Новгород-Сіверського р. | G125: 0 | H125: 0 | M125: 0 | N125: 0 | Q125: 0 | T125: 0
A126: 14 | B126: Носівського р. | G126: 0 | H126: 0 | M126: 0 | N126: 0 | Q126: 0 | S126: 4 | T126: 0
A127: 15 | B127: Прилуцька мр.пр. | G127: 0 | H127: 0 | M127: 0 | N127: 0 | Q127: 0 | T127: 0
A128: 16 | B128: Ріпкинська р. | G128: 0 | H128: 0 | M128: 0 | N128: 0 | Q128: 0 | T128: 0
A129: 17 | B129: Семенівського р. | G129: 0 | H129: 0 | M129: 0 | N129: 0 | Q129: 0 | T129: 0
A130: 18 | B130: Сосницького р. | G130: 0 | H130: 0 | M130: 0 | N130: 0 | Q130: 0 | T130: 0
A131: 19 | B131: Срібнянського р. | G131: 0 | H131: 0 | M131: 0 | N131: 0 | Q131: 0 | T131: 0
A132: 20 | B132: Талалаївського р. | G132: 0 | H132: 0 | M132: 0 | N132: 0 | Q132: 0 | T132: 0
A133: 21 | B133: Чернігівського р. | G133: 0 | H133: 0 | M133: 0 | N133: 0 | Q133: 0 | T133: 0
A134: 22 | B134: м.Чернігова | G134: 0 | H134: 0 | M134: 0 | N134: 0 | Q134: 0 | T134: 0
A135: 23 | B135: Щорського р. | G135: 0 | H135: 0 | M135: 0 | N135: 0 | Q135: 0 | T135: 0
A136: 24 | B136: Апарат прокуратури | D136: 8 | F136: 6 | G136: 0 | H136: 75 | M136: 0 | N136: 0 | P136: 303 | Q136: 0 | T136: 0
A137: 25 | B137: Усього по області | D137: 9 | F137: 7 | G137: 0 | H137: 77.77777778 | J137: 0 | L137: 0 | M137: 0 | N137: 0 | P137: 303 | Q137: 0 | S137: 58 | T137: 0
A138: РОЗДІЛ 1. Представництво інтересів громадян та держави в судах
A139: Таблиця 5. На захист інтересів держави
A141: Код | B141: Прокуратура | C141: Досудове врегулювання спорів | I141: Розгляд справи судом | O141: Сума за рішеннями, які передано на примусове виконання (тис.грн.) | R141: Кількість справ у яких забезпечено участь прокурора | U141: Сума за рішеннями прийнятими на користь сторони, в інтересах якої прокурор вступив у справу (тис.грн.)
C142: Кількість направлених звернень | F142: Кількість позовів (заяв, скарг, подань), внесених у разі неврегулювання спору | I142: Задоволено позовів, заяв, скарг, подань | L142: Сума по них (тис.грн.)
C143: =C112 -> 2014 | D143: =D112 -> 2015 | E143: % | F143: =C143 -> 2014 | G143: =D143 -> 2015 | H143: % | I143: =F143 -> 2014 | J143: =G143 -> 2015 | K143: % | L143: =I143 -> 2014 | M143: =J143 -> 2015 | N143: % | O143: =L143 -> 2014 | P143: =M143 -> 2015 | Q143: % | R143: =O143 -> 2014 | S143: =P143 -> 2015 | T143: % | U143: =R143 -> 2014 | V143: =S143 -> 2015 | W143: %
A144: 1 | B144: Бахмацького р. | E144: =IF(C144=0,0,IF(D144=0,"-100,0",IF(D144*100/C144<200,ROUND(D144*100/C144-100,1),ROUND(D144/C144,1)&" р"))) -> 0 | H144: =IF(F144=0,0,IF(G144=0,"-100,0",IF(G144*100/F144<200,ROUND(G144*100/F144-100,1),ROUND(G144/F144,1)&" р"))) -> 0 | I144: 18 | J144: 20 | K144: =IF(I144=0,0,IF(J144=0,"-100,0",IF(J144*100/I144<200,ROUND(J144*100/I144-100,1),ROUND(J144/I144,1)&" р"))) -> 11.1 | L144: 1529 | M144: 3789 | N144: =IF(L144=0,0,IF(M144=0,"-100,0",IF(M144*100/L144<200,ROUND(M144*100/L144-100,1),ROUND(M144/L144,1)&" р"))) -> 2,5 р | P144: 130 | Q144: =IF(O144=0,0,IF(P144=0,"-100,0",IF(P144*100/O144<200,ROUND(P144*100/O144-100,1),ROUND(P144/O144,1)&" р"))) -> 0 | S144: 3 | T144: =IF(R144=0,0,IF(S144=0,"-100,0",IF(S144*100/R144<200,ROUND(S144*100/R144-100,1),ROUND(S144/R144,1)&" р"))) -> 0 | W144: =IF(U144=0,0,IF(V144=0,"-100,0",IF(V144*100/U144<200,ROUND(V144*100/U144-100,1),ROUND(V144/U144,1)&" р"))) -> 0
A145: 2 | B145: Бобровицького р. | E145: 0 | H145: 0 | I145: 7 | J145: 6 | K145: -14.3 | L145: 8710 | M145: 130 | N145: -98.5 | P145: 5 | Q145: 0 | S145: 11 | T145: 0 | W145: 0
A146: 3 | B146: Борзнянського р. | E146: 0 | H146: 0 | I146: 7 | J146: 4 | K146: -42.9 | L146: 310 | M146: 4858 | N146: 15,7 р | Q146: 0 | T146: 0 | W146: 0
A147: 4 | B147: Варвинського р. | E147: 0 | H147: 0 | I147: 6 | J147: 6 | K147: 0 | L147: 297 | M147: 19 | N147: -93.6 | P147: 19 | Q147: 0 | S147: 3 | T147: 0 | W147: 0
A148: 5 | B148: Городнянського р. | E148: 0 | H148: 0 | I148: 19 | J148: 17 | K148: -10.5 | L148: 378 | M148: 5270 | N148: 13,9 р | P148: 6 | Q148: 0 | S148: 13 | T148: 0 | W148: 0
A149: 6 | B149: Ічнянського р. | E149: 0 | H149: 0 | I149: 17 | J149: 11 | K149: -35.3 | L149: 944 | M149: 188 | N149: -80.1 | P149: 35 | Q149: 0 | S149: 11 | T149: 0 | W149: 0
A150: 7 | B150: Козелецького р. | E150: 0 | H150: 0 | I150: 12 | J150: 20 | K150: 66.7 | L150: 413 | M150: 310 | N150: -24.9 | P150: 142 | Q150: 0 | S150: 7 | T150: 0 | W150: 0
A151: 8 | B151: Коропського р. | E151: 0 | H151: 0 | I151: 10 | J151: 13 | K151: 30 | L151: 118 | M151: 230 | N151: 94.9 | Q151: 0 | S151: 13 | T151: 0 | W151: 0
A152: 9 | B152: Корюківського р. | E152: 0 | H152: 0 | I152: 6 | J152: 12 | K152: 2 р | L152: 1015 | M152: 15879 | N152: 15,6 р | P152: 219 | Q152: 0 | S152: 7 | T152: 0 | W152: 0
A153: 10 | B153: Куликівського р. | E153: 0 | H153: 0 | I153: 6 | J153: 33 | K153: 5,5 р | L153: 354 | M153: 1873 | N153: 5,3 р | P153: 20 | Q153: 0 | S153: 30 | T153: 0 | W153: 0
A154: 11 | B154: Менського р. | E154: 0 | H154: 0 | I154: 15 | J154: 8 | K154: -46.7 | L154: 192 | M154: 4060 | N154: 21,1 р | P154: 59 | Q154: 0 | S154: 8 | T154: 0 | W154: 0
A155: 12 | B155: Ніжинського мр.пр. | E155: 0 | H155: 0 | I155: 22 | J155: 18 | K155: -18.2 | L155: 18802 | M155: 3505 | N155: -81.4 | P155: 1972 | Q155: 0 | S155: 8 | T155: 0 | W155: 0
A156: 13 | B156: Новгород-Сіверського р. | E156: 0 | H156: 0 | I156: 11 | J156: 16 | K156: 45.5 | L156: 185 | M156: 1046 | N156: 5,7 р | Q156: 0 | S156: 13 | T156: 0 | W156: 0
A157: 14 | B157: Носівського р. | E157: 0 | H157: 0 | I157: 16 | J157: 11 | K157: -31.3 | L157: 37904 | M157: 442 | N157: -98.8 | P157: 51 | Q157: 0 | S157: 9 | T157: 0 | W157: 0
A158: 15 | B158: Прилуцька мр.пр. | E158: 0 | H158: 0 | I158: 24 | J158: 22 | K158: -8.3 | L158: 4561 | M158: 1361 | N158: -70.2 | P158: 1355 | Q158: 0 | S158: 10 | T158: 0 | W158: 0
A159: 16 | B159: Ріпкинська р. | E159: 0 | H159: 0 | I159: 10 | J159: 12 | K159: 20 | L159: 140 | M159: 1034 | N159: 7,4 р | P159: 10 | Q159: 0 | S159: 10 | T159: 0 | W159: 0
A160: 17 | B160: Семенівського р. | E160: 0 | H160: 0 | I160: 5 | J160: 7 | K160: 40 | L160: 212 | M160: 1032 | N160: 4,9 р | P160: 126 | Q160: 0 | S160: 4 | T160: 0 | W160: 0
A161: 18 | B161: Сосницького р. | E161: 0 | H161: 0 | I161: 4 | J161: 17 | K161: 4,3 р | L161: 130 | M161: 454 | N161: 3,5 р | P161: 44 | Q161: 0 | S161: 14 | T161: 0 | W161: 0
A162: 19 | B162: Срібнянського р. | E162: 0 | H162: 0 | I162: 5 | J162: 8 | K162: 60 | L162: 251 | M162: 472 | N162: 88 | P162: 33 | Q162: 0 | S162: 4 | T162: 0 | W162: 0
A163: 20 | B163: Талалаївського р. | E163: 0 | H163: 0 | I163: 7 | J163: 4 | K163: -42.9 | L163: 416 | M163: 2241 | N163: 5,4 р | Q163: 0 | S163: 3 | T163: 0 | W163: 0
A164: 21 | B164: Чернігівського р. | E164: 0 | H164: 0 | I164: 12 | J164: 27 | K164: 2,3 р | L164: 893 | M164: 10365 | N164: 11,6 р | P164: 1026 | Q164: 0 | S164: 28 | T164: 0 | W164: 0
A165: 22 | B165: м.Чернігова | E165: 0 | H165: 0 | I165: 65 | J165: 44 | K165: -32.3 | L165: 42929 | M165: 16167 | N165: -62.3 | P165: 2664 | Q165: 0 | S165: 45 | T165: 0 | V165: 169 | W165: 0
A166: 23 | B166: Щорського р. | E166: 0 | H166: 0 | I166: 6 | J166: 8 | K166: 33.3 | L166: 123 | M166: 346 | N166: 2,8 р | Q166: 0 | S166: 6 | T166: 0 | W166: 0
A167: 24 | B167: Апарат прокуратури | E167: 0 | H167: 0 | I167: 28 | J167: 62 | K167: 2,2 р | L167: 40386 | M167: 122230 | N167: 3 р | P167: 991 | Q167: 0 | S167: 221 | T167: 0 | V167: 1122 | W167: 0
A168: 25 | B168: Усього по області | D168: 0 | E168: 0 | G168: 0 | H168: 0 | I168: 345 | J168: 406 | K168: 17.7 | L168: 161449 | M168: 197301 | N168: 22.2 | P168: 8907 | Q168: 0 | S168: 481 | T168: 0 | V168: 1291 | W168: 0
A169: РОЗДІЛ 1. Представництво інтересів громадян та держави в судах
A170: Таблиця 6. На захист інтересів держави
A172: Код | B172: Прокуратура | C172: Апеляційні скарги | I172: Касаційні скарги | O172: Сума за рішеннями, скасованими за скаргами, заявами прокурора (тис.грн.) | R172: Площа повернутих земель та незаконне надання яких попереджено
C173: Розглянуто | E173: Задоволено | G173: Питома вага | I173: Розглянуто | K173: Задоволено | M173: Питома вага
C174: =C143 -> 2014 | D174: =D143 -> 2015 | E174: =C174 -> 2014 | F174: =D174 -> 2015 | G174: =E174 -> 2014 | H174: =F174 -> 2015 | I174: =G174 -> 2014 | J174: =H174 -> 2015 | K174: =I174 -> 2014 | L174: =J174 -> 2015 | M174: =K174 -> 2014 | N174: =L174 -> 2015 | O174: =M174 -> 2014 | P174: =N174 -> 2015 | Q174: % | R174: =O174 -> 2014 | S174: =P174 -> 2015 | T174: %
A175: 1 | B175: Бахмацького р. | G175: =IF(C175=0,0,E175*100/C175) -> 0 | H175: =IF(D175=0,0,F175*100/D175) -> 0 | M175: =IF(I175=0,0,K175*100/I175) -> 0 | N175: =IF(J175=0,0,L175*100/J175) -> 0 | Q175: =IF(O175=0,0,IF(P175=0,"-100,0",IF(P175*100/O175<200,ROUND(P175*100/O175-100,1),ROUND(P175/O175,1)&" р"))) -> 0 | S175: 62 | T175: =IF(R175=0,0,IF(S175=0,"-100,0",IF(S175*100/R175<200,ROUND(S175*100/R175-100,1),ROUND(S175/R175,1)&" р"))) -> 0
A176: 2 | B176: Бобровицького р. | G176: =IF(C176=0,0,E176*100/C176) -> 0 | H176: =IF(D176=0,0,F176*100/D176) -> 0 | M176: =IF(I176=0,0,K176*100/I176) -> 0 | N176: =IF(J176=0,0,L176*100/J176) -> 0 | Q176: 0 | T176: 0
A177: 3 | B177: Борзнянського р. | G177: 0 | H177: 0 | M177: 0 | N177: 0 | Q177: 0 | T177: 0
A178: 4 | B178: Варвинського р. | G178: 0 | H178: 0 | M178: 0 | N178: 0 | Q178: 0 | T178: 0
A179: 5 | B179: Городнянського р. | D179: 1 | F179: 1 | G179: 0 | H179: 100 | M179: 0 | N179: 0 | Q179: 0 | S179: 653 | T179: 0
A180: 6 | B180: Ічнянського р. | D180: 1 | F180: 1 | G180: 0 | H180: 100 | M180: 0 | N180: 0 | Q180: 0 | S180: 12 | T180: 0
A181: 7 | B181: Козелецького р. | G181: 0 | H181: 0 | M181: 0 | N181: 0 | Q181: 0 | S181: 38 | T181: 0
A182: 8 | B182: Коропського р. | G182: 0 | H182: 0 | M182: 0 | N182: 0 | Q182: 0 | T182: 0
A183: 9 | B183: Корюківського р. | G183: 0 | H183: 0 | M183: 0 | N183: 0 | Q183: 0 | S183: 591 | T183: 0
A184: 10 | B184: Куликівського р. | G184: 0 | H184: 0 | M184: 0 | N184: 0 | Q184: 0 | T184: 0
A185: 11 | B185: Менського р. | D185: 1 | G185: 0 | H185: 0 | M185: 0 | N185: 0 | Q185: 0 | S185: 183 | T185: 0
A186: 12 | B186: Ніжинського мр.пр. | G186: 0 | H186: 0 | M186: 0 | N186: 0 | Q186: 0 | T186: 0
A187: 13 | B187: Новгород-Сіверського р. | G187: 0 | H187: 0 | M187: 0 | N187: 0 | Q187: 0 | T187: 0
A188: 14 | B188: Носівського р. | G188: 0 | H188: 0 | M188: 0 | N188: 0 | Q188: 0 | S188: 219 | T188: 0
A189: 15 | B189: Прилуцька мр.пр. | G189: 0 | H189: 0 | M189: 0 | N189: 0 | Q189: 0 | T189: 0
A190: 16 | B190: Ріпкинська р. | G190: 0 | H190: 0 | M190: 0 | N190: 0 | Q190: 0 | S190: 43.53 | T190: 0
A191: 17 | B191: Семенівського р. | G191: 0 | H191: 0 | M191: 0 | N191: 0 | Q191: 0 | S191: 40 | T191: 0
A192: 18 | B192: Сосницького р. | G192: 0 | H192: 0 | M192: 0 | N192: 0 | Q192: 0 | T192: 0
A193: 19 | B193: Срібнянського р. | G193: 0 | H193: 0 | M193: 0 | N193: 0 | Q193: 0 | S193: 7 | T193: 0
A194: 20 | B194: Талалаївського р. | G194: 0 | H194: 0 | M194: 0 | N194: 0 | Q194: 0 | S194: 161 | T194: 0
A195: 21 | B195: Чернігівського р. | G195: 0 | H195: 0 | M195: 0 | N195: 0 | Q195: 0 | S195: 23 | T195: 0
A196: 22 | B196: м.Чернігова | D196: 2 | F196: 1 | G196: 0 | H196: 50 | M196: 0 | N196: 0 | Q196: 0 | T196: 0
A197: 23 | B197: Щорського р. | G197: 0 | H197: 0 | M197: 0 | N197: 0 | Q197: 0 | S197: 90 | T197: 0
A198: 24 | B198: Апарат прокуратури | D198: 26 | F198: 17 | G198: 0 | H198: 65.38461538 | J198: 6 | L198: 4 | M198: 0 | N198: 66.66666667 | P198: 619 | Q198: 0 | S198: 8329 | T198: 0
A199: 25 | B199: Усього по області | D199: 31 | F199: 20 | G199: 0 | H199: 64.51612903 | J199: 6 | L199: 4 | M199: 0 | N199: 66.66666667 | P199: 619 | Q199: 0 | S199: 10451.53 | T199: 0
A200: РОЗДІЛ 1. Представництво інтересів громадян та держави в судах
A201: Таблиця 7. На захист інтересів держави у бюджетній сфері
A203: Код | B203: Прокуратура | C203: Досудове врегулювання спорів | I203: Розгляд справи судом | O203: Сума за рішеннями, які передано на примусове виконання (тис.грн.) | R203: Кількість справ у яких забезпечено участь прокурора | U203: Сума за рішеннями прийнятими на користь сторони, в інтересах якої прокурор вступив у справу (тис.грн.)
C204: Кількість направлених звернень | F204: Кількість позовів (заяв, скарг, подань), внесених у разі неврегулювання спору | I204: Задоволено позовів, заяв, скарг, подань | L204: Сума по них (тис.грн.)
C205: =C174 -> 2014 | D205: =D174 -> 2015 | E205: % | F205: =C205 -> 2014 | G205: =D205 -> 2015 | H205: % | I205: =F205 -> 2014 | J205: =G205 -> 2015 | K205: % | L205: =I205 -> 2014 | M205: =J205 -> 2015 | N205: % | O205: =L205 -> 2014 | P205: =M205 -> 2015 | Q205: % | R205: =O205 -> 2014 | S205: =P205 -> 2015 | T205: % | U205: =R205 -> 2014 | V205: =S205 -> 2015 | W205: %
A206: 1 | B206: Бахмацького р. | E206: =IF(C206=0,0,IF(D206=0,"-100,0",IF(D206*100/C206<200,ROUND(D206*100/C206-100,1),ROUND(D206/C206,1)&" р"))) -> 0 | H206: =IF(F206=0,0,IF(G206=0,"-100,0",IF(G206*100/F206<200,ROUND(G206*100/F206-100,1),ROUND(G206/F206,1)&" р"))) -> 0 | J206: 1 | K206: =IF(I206=0,0,IF(J206=0,"-100,0",IF(J206*100/I206<200,ROUND(J206*100/I206-100,1),ROUND(J206/I206,1)&" р"))) -> 0 | M206: 102 | N206: =IF(L206=0,0,IF(M206=0,"-100,0",IF(M206*100/L206<200,ROUND(M206*100/L206-100,1),ROUND(M206/L206,1)&" р"))) -> 0 | P206: 102 | Q206: =IF(O206=0,0,IF(P206=0,"-100,0",IF(P206*100/O206<200,ROUND(P206*100/O206-100,1),ROUND(P206/O206,1)&" р"))) -> 0 | T206: =IF(R206=0,0,IF(S206=0,"-100,0",IF(S206*100/R206<200,ROUND(S206*100/R206-100,1),ROUND(S206/R206,1)&" р"))) -> 0 | W206: =IF(U206=0,0,IF(V206=0,"-100,0",IF(V206*100/U206<200,ROUND(V206*100/U206-100,1),ROUND(V206/U206,1)&" р"))) -> 0
A207: 2 | B207: Бобровицького р. | E207: 0 | H207: 0 | K207: 0 | N207: 0 | Q207: 0 | T207: 0 | W207: 0
A208: 3 | B208: Борзнянського р. | E208: 0 | H208: 0 | J208: 4 | K208: 0 | M208: 166 | N208: 0 | Q208: 0 | T208: 0 | W208: 0
A209: 4 | B209: Варвинського р. | E209: 0 | H209: 0 | J209: 4 | K209: 0 | M209: 7 | N209: 0 | P209: 7 | Q209: 0 | T209: 0 | W209: 0
A210: 5 | B210: Городнянського р. | E210: 0 | H210: 0 | J210: 1 | K210: 0 | M210: 2 | N210: 0 | Q210: 0 | T210: 0 | W210: 0
A211: 6 | B211: Ічнянського р. | E211: 0 | H211: 0 | J211: 2 | K211: 0 | M211: 8 | N211: 0 | Q211: 0 | T211: 0 | W211: 0
A212: 7 | B212: Козелецького р. | E212: 0 | H212: 0 | J212: 8 | K212: 0 | M212: 91 | N212: 0 | Q212: 0 | T212: 0 | W212: 0
... 705 more rows

Sheet Довідки1
A1: ДОВІДКА
A2: =Довідки!A10 -> Прокуратура Чернігівської області
A3: =Довідки!A8 -> за 9 місяців 2015 року
F5: =Довідки!F19 -> 2014 | G5: =Довідки!G19 -> 2015 | H5: Дин. %
A6: а | E6: б | F6: 1 | G6: 2 | H6: 3
A7: Представництво інтересів громадян та держави в судах
A8: Досудове врегулювання спорів | C8: Кількість направлених звернень | E8: 1 | G8: 0 | H8: =IF(F8=0,0,IF(G8=0,"-100,0",IF(G8*100/F8<200,ROUND(G8*100/F8-100,1),ROUND(G8/F8,1)&" р"))) -> 0
C9: Кількість позовів (заяв, скарг, подань), внесених у разі неврегулювання спору | E9: 2 | G9: 0 | H9: 0
A10: Розгляд справи судом | C10: Задоволено позовів, заяв, скарг, подань | E10: 3 | F10: 561 | G10: 620 | H10: 10.5
C11: Сума по них (тис.грн.) | E11: 4 | F11: 163522 | G11: 210545 | H11: 28.8
A12: Сума за рішеннями, які передано на примусове виконання (тис.грн.) | E12: 5 | G12: 10228 | H12: 0
A13: Кількість справ у яких забезпечено участь прокурора | E13: 6 | F13: 720 | G13: 774 | H13: 7.5
A14: Сума за рішеннями прийнятими на користь сторони, в інтересах якої прокурор вступив у справу (тис.грн.) | E14: 7 | F14: 20705 | G14: 1305 | H14: -93.7
A15: Апеляційні скарги | C15: розглянуто | E15: 8 | F15: 16 | G15: 40 | H15: 2,5 р
C16: задоволено | E16: 9 | F16: 10 | G16: 27 | H16: 2,7 р
C17: питома вага | E17: 10 | F17: =IF(F15=0,0,F16*100/F15) -> 62.5 | G17: =IF(G15=0,0,G16*100/G15) -> 67.5 | H17: 8
A18: Касаційні скарги | C18: розглянуто | E18: 11 | F18: 2 | G18: 6 | H18: 3 р
C19: задоволено | E19: 12 | G19: 4 | H19: 0
C20: питома вага | E20: 13 | F20: =IF(F18=0,0,F19*100/F18) -> 0 | G20: =IF(G18=0,0,G19*100/G18) -> 66.66666667
A21: Сума за рішеннями, скасованими за скаргами, заявами прокурора (тис.грн.) | E21: 14 | F21: 24 | G21: 922 | H21: 38,4 р
A22: Площа повернутих земель та незаконне надання яких попереджено | E22: 15 | G22: 10513.53 | H22: 0
A23: Нагляд за додержанням законів органами, які ведуть боротьбу зі злочинністю
A24: Виявлено та внесено до Реєстру відомості про вчинені кримінальні правопорушення, раніше не обліковані (за кримінальними провадженнями) | E24: 16 | F24: 29 | G24: 50 | H24: 72.4
A25: з них: | B25: надіслано до суду | E25: 17 | F25: 4 | G25: 2 | H25: -50
B26: питома вага | E26: 18 | F26: =IF(F24=0,0,F25*100/F24) -> 13.79310345 | G26: =IF(G24=0,0,G25*100/G24) -> 4
B27: закрито за п.п.1, 2, 3 ч.1 ст. 284 КПК | E27: 19 | F27: 6 | G27: 21 | H27: 3,5 р
A28: Винесено прокурором постанов про відновлення досудового розслідування | E28: 20 | F28: 5 | G28: 5 | H28: 0
A29: Скасовано постанов про закриття кримінальних проваджень | E29: 21 | F29: 525 | G29: 852 | H29: 62.3
A30: у т.ч. | B30: направлено до суду | E30: 22 | F30: 7 | G30: 29 | H30: 4,1 р
B31: питома вага до всього | E31: 23 | F31: =IF(F29=0,0,F30*100/F29) -> 1.333333333 | G31: =IF(G29=0,0,G30*100/G29) -> 3.403755869
A32: Прийнято прокурором участь у розгляді слідчим суддею скарг на рішення, дії чи бездіяльність слідчого або прокурора | E32: 24 | F32: 129 | G32: 114 | H32: -11.6
A33: Розглянуто документів прокурора з вжиттям заходів до усунення порушень законів у діяльності органів (з питань слідства та ОРД) (таб.4+6) | D33: внутрішніх справ | E33: 25 | F33: 297 | G33: 234 | H33: -21.2
D34: фіскальної служби | E34: 26 | F34: 10 | G34: 2 | H34: -80
D35: служби безпеки | E35: 27 | F35: 1 | G35: 2 | H35: 2 р
A36: Притягнуто до дисциплінарної відповідальності працівників органів за документами прокурора (з питань слідства та ОРД) (таб.4+6) | D36: внутрішніх справ | E36: 28 | F36: 333 | G36: 279 | H36: -16.2
D37: фіскальної служби | E37: 29 | F37: 16 | G37: 10 | H37: -37.5
D38: служби безпеки | E38: 30 | F38: 4 | G38: 2 | H38: -50
A39: Повідомлено про підозру за направленими до суду кримінальними провадженнями працівникам органів (з питань слідства) (таб.4) | D39: внутрішніх справ | E39: 31 | G39: 9 | H39: 0
D40: фіскальної служби | E40: 32 | G40: 0 | H40: 0
D41: служби безпеки | E41: 33 | G41: 0 | H41: 0
A42: Перевірено ОРС | E42: 34 | F42: 2389 | G42: 2279 | H42: -4.6
A43: Скасовано незаконних постанов з питань ОРД | E43: 35 | F43: 138 | G43: 153 | H43: 10.9
A44: Розглянуто прокурором клопотань слідчих | D44: прокурором погоджено | E44: 36 | F44: 1131 | G44: 1019 | H44: -9.9
D45: прокурором відмовлено | E45: 37 | F45: 89 | G45: 127 | H45: 42.7
D46: питома вага | E46: 38 | F46: =IF((F44+F45)=0,0,F44*100/(F44+F45)) -> 92.70491803 | G46: =IF((G44+G45)=0,0,G44*100/(G44+G45)) -> 88.91797557
A47: Внесено прокурором особисто | E47: 39 | G47: 13 | H47: 0
A48: Рішення суду за результатами розгляду клопотання прокурора або слідчого | D48: судом задоволено | E48: 40 | F48: 993 | G48: 966 | H48: -2.7
D49: судом відмовлено | E49: 41 | F49: 3 | G49: 0 | H49: -100,0
D50: питома вага | E50: 42 | F50: =IF((F48+F49)=0,0,F48*100/(F48+F49)) -> 99.69879518 | G50: =IF((G48+G49)=0,0,G48*100/(G48+G49)) -> 100
A51: Прийнято прокурором рішень | E51: 43 | F51: 389 | G51: 338 | H51: -13.1
A52: Прийнято прокурором самостійно рішень про проведення НСРД | E52: 44 | F52: 117 | G52: 152 | H52: 29.9
A53: з них: | B53: з подальшим розсекреченням | E53: 45 | F53: 86 | G53: 114 | H53: 32.6
A54: За рішенням прокурора | E54: 46 | F54: 67 | G54: 50 | H54: -25.4
A55: Розглянуті апеляційні скарги прокурора на судові рішення з питань досудового розслідування | E55: 47 | F55: 15 | G55: 9 | H55: -40
A56: з них: | B56: задоволено | E56: 48 | F56: 10 | G56: 8 | H56: -20
B57: питома вага | E57: 49 | F57: =IF(F55=0,0,F56*100/F55) -> 66.66666667 | G57: =IF(G55=0,0,G56*100/G55) -> 88.88888889
A58: Подано до суду клопотань | E58: 50 | F58: 565 | G58: 640 | H58: 13.3
A59: Відкликано прокурором клопотань | E59: 51 | G59: 0 | H59: 0
A60: Відмовлено слідчим суддею у задоволенні клопотань | E60: 52 | F60: 34 | G60: 55 | H60: 61.8
A61: Питома вага до відхилених | E61: 53 | F61: =IF(F58=0,0,F60*100/F58) -> 6.017699115 | G61: =IF(G58=0,0,G60*100/G58) -> 8.59375
A62: Подано апел. скарг на ухвали слідчого судді про відмову в застосуванні запобіжного заходу | E62: 54 | F62: 13 | G62: 8 | H62: -38.5
A63: Питома вага до внесених | E63: 55 | F63: =IF(F60=0,0,F62*100/F60) -> 38.23529412 | G63: =IF(G60=0,0,G62*100/G60) -> 14.54545455
A64: Задоволено апеляційних скарг | E64: 56 | F64: 6 | G64: 3 | H64: =IF(F64=0,0,IF(G64=0,"-100,0",IF(G64*100/F64<200,ROUND(G64*100/F64-100,1),ROUND(G64/F64,1)&" р"))) -> -50
A65: Питома вага до внесених | E65: 57 | F65: =IF(F62=0,0,F64*100/F62) -> 46.15384615 | G65: =IF(G62=0,0,G64*100/G62) -> 37.5
A66: Участь прокурорів у судовому розгляді кримінальних проваджень та перегляді судових рішень
A67: Участь у розгляді справ судами (усього) | E67: 58 | F67: =J67+M67 -> 4724 | G67: =K67+N67 -> 3780 | H67: =IF(F67=0,0,IF(G67=0,"-100,0",IF(G67*100/F67<200,ROUND(G67*100/F67-100,1),ROUND(G67/F67,1)&" р"))) -> -20 | J67: 4720 | K67: 3780 | M67: 4 | N67: 0 | P67: 0
A68: Участь у судовому розгляді проваджень судами І інстанції з ухваленням вироку | E68: 59 | F68: 1683 | G68: 1781 | H68: 5.8
A69: у т.ч. | B69: з ухваленням вироку на підставі угоди | E69: 60 | F69: 23 | G69: 15 | H69: -34.8 | J69: 0 | K69: 0
A70: У розгляді судом питань, пов’язаних з виконанням вироків | E70: 61 | F70: 1892 | G70: 885 | H70: -53.2 | J70: 31 | K70: 29
A71: Переглянуто вироків відносно осіб за апеляційними скаргами | E71: 62 | F71: 106 | G71: 162 | H71: 52.8 | J71: 52 | K71: 48 | M71: 106 | N71: 162
A72: Відсоток апеляційної практики | E72: 63 | F72: =IF(J72=0,0,(F71-J69)*100/J72) -> 83.46456693 | G72: =IF(K72=0,0,(G71-K69)*100/K72) -> 89.50276243 | J72: =F71+J71-J70-J69 -> 127 | K72: =G71+K71-K70-K69 -> 181 | M72: 32 | N72: 48
A73: Питома вага задоволених апеляцій | E73: 64 | F73: =IF(M73=0,0,M71*100/M73) -> 76.8115942 | G73: =IF(N73=0,0,N71*100/N73) -> 77.14285714 | M73: =SUM(M71:M72) -> 138 | N73: =SUM(N71:N72) -> 210
A74: Нагляд за додержанням законів при виконанні судових рішень у кримінальних провадженнях
A75: Звільнено за ініціативою прокурора незаконно утримуваних осіб | E75: 65 | F75: 0 | G75: 0 | H75: =IF(F75=0,0,IF(G75=0,"-100,0",IF(G75*100/F75<200,ROUND(G75*100/F75-100,1),ROUND(G75/F75,1)&" р"))) -> 0 | M75: 0 | N75: 0
A76: Розглянуто документів прокурора з вжиттям заходів щодо усунення порушень закону | E76: 66 | F76: 224 | G76: 264 | H76: 17.9 | M76: 0 | N76: 0
A77: Притягнуто до дисциплінарної, адміністративної відповідальності працівників | E77: 67 | F77: 177 | G77: 186 | H77: 5.1
A78: Розгляд звернень і висвітлення діяльності органів прокуратури
A79: Вирішено звернень | E79: 68 | F79: 4894 | G79: 5311 | H79: 8.5
A80: з них: | B80: задоволено | E80: 69 | F80: 224 | G80: 254 | H80: 13.4
B81: питома вага | E81: 70 | F81: =IF(F79=0,0,F80*100/F79) -> 4.577033102 | G81: =IF(G79=0,0,G80*100/G79) -> 4.782526831
A82: Задоволено з тих, що раніше відхилялись підпорядкованими прокурорами | E82: 71 | F82: 1 | G82: 1 | H82: 0
A83: Виступи в ЗМІ | E83: 72 | F83: 1619 | G83: 1879 | H83: =IF(F83=0,0,IF(G83=0,"-100,0",IF(G83*100/F83<200,ROUND(G83*100/F83-100,1),ROUND(G83/F83,1)&" р"))) -> 16.1
A84: Розглянуто запитів | E84: 73 | F84: 57 | G84: 71 | H84: 24.6

Sheet Довідки2
A1: ДОВІДКА
A3: за 3 місяці 2015 року
F5: 2014 | G5: 2015 | H5: Дин. % | I5: Дин. по обл
A6: а | E6: б | F6: 1 | G6: 2 | H6: 3 | I6: 4
A7: Представництво інтересів громадян та держави в судах
A8: Досудове врегулювання спорів | C8: Кількість направлених звернень | E8: 1 | H8: =IF(F8=0,0,IF(G8=0,"-100,0",IF(G8*100/F8<200,ROUND(G8*100/F8-100,1),ROUND(G8/F8,1)&" р"))) -> 0 | I8: =Довідки1!H8 -> 0
C9: Кількість позовів (заяв, скарг, подань), внесених у разі неврегулювання спору | E9: 2 | H9: 0 | I9: =Довідки1!H9 -> 0
A10: Розгляд справи судом | C10: Задоволено позовів, заяв, скарг, подань | E10: 3 | H10: 0 | I10: =Довідки1!H10 -> 10.5
C11: Сума по них (тис.грн.) | E11: 4 | H11: 0 | I11: =Довідки1!H11 -> 28.8
A12: Сума за рішеннями, які передано на примусове виконання (тис.грн.) | E12: 5 | H12: 0 | I12: =Довідки1!H12 -> 0
A13: Кількість справ у яких забезпечено участь прокурора | E13: 6 | H13: 0 | I13: =Довідки1!H13 -> 7.5
A14: Сума за рішеннями прийнятими на користь сторони, в інтересах якої прокурор вступив у справу (тис.грн.) | E14: 7 | H14: 0 | I14: =Довідки1!H14 -> -93.7
A15: Апеляційні скарги | C15: розглянуто | E15: 8 | H15: 0 | I15: =Довідки1!H15 -> 2,5 р
C16: задоволено | E16: 9 | H16: 0 | I16: =Довідки1!H16 -> 2,7 р
C17: питома вага | E17: 10 | F17: =IF(F15=0,0,F16*100/F15) -> 0 | G17: =IF(G15=0,0,G16*100/G15) -> 0 | H17: 0 | I17: =Довідки1!G17 -> 67.5
A18: Касаційні скарги | C18: розглянуто | E18: 11 | H18: 0 | I18: =Довідки1!H18 -> 3 р
C19: задоволено | E19: 12 | H19: 0 | I19: =Довідки1!H19 -> 0
C20: питома вага | E20: 13 | F20: =IF(F18=0,0,F19*100/F18) -> 0 | G20: =IF(G18=0,0,G19*100/G18) -> 0 | I20: =Довідки1!G20 -> 66.66666667
A21: Сума за рішеннями, скасованими за скаргами, заявами прокурора (тис.грн.) | E21: 14 | H21: 0 | I21: =Довідки1!H21 -> 38,4 р
A22: Площа повернутих земель та незаконне надання яких попереджено | E22: 15 | H22: 0 | I22: =Довідки1!H22 -> 0
A23: Нагляд за додержанням законів органами, які ведуть боротьбу зі злочинністю | I23: =Довідки1!H23 -> 0
A24: Виявлено та внесено до Реєстру відомості про вчинені кримінальні правопорушення, раніше не обліковані (за кримінальними провадженнями) | E24: 16 | H24: 0 | I24: =Довідки1!H24 -> 72.4
A25: з них: | B25: надіслано до суду | E25: 17 | H25: 0 | I25: =Довідки1!H25 -> -50
B26: питома вага | E26: 18 | F26: =IF(F24=0,0,F25*100/F24) -> 0 | G26: =IF(G24=0,0,G25*100/G24) -> 0 | I26: =Довідки1!G26 -> 4
B27: закрито за п.п.1, 2, 3 ч.1 ст. 284 КПК | E27: 19 | H27: 0 | I27: =Довідки1!H27 -> 3,5 р
A28: Винесено прокурором постанов про відновлення досудового розслідування | E28: 20 | H28: 0 | I28: =Довідки1!H28 -> 0
A29: Скасовано постанов про закриття кримінальних проваджень | E29: 21 | H29: 0 | I29: =Довідки1!H29 -> 62.3
A30: у т.ч. | B30: направлено до суду | E30: 22 | H30: 0 | I30: =Довідки1!H30 -> 4,1 р
B31: питома вага до всього | E31: 23 | F31: =IF(F29=0,0,F30*100/F29) -> 0 | G31: =IF(G29=0,0,G30*100/G29) -> 0 | I31: =Довідки1!G31 -> 3.403755869
A32: Прийнято прокурором участь у розгляді слідчим суддею скарг на рішення, дії чи бездіяльність слідчого або прокурора | E32: 24 | H32: 0 | I32: =Довідки1!H32 -> -11.6
A33: Розглянуто документів прокурора з вжиттям заходів до усунення порушень законів у діяльності органів (з питань слідства та ОРД) (таб.4+6) | D33: внутрішніх справ | E33: 25 | F33: 0 | G33: 0 | H33: 0 | I33: =Довідки1!H33 -> -21.2
D34: фіскальної служби | E34: 26 | F34: 0 | G34: 0 | H34: 0 | I34: =Довідки1!H34 -> -80
D35: служби безпеки | E35: 27 | F35: 0 | G35: 0 | H35: 0 | I35: =Довідки1!H35 -> 2 р
A36: Притягнуто до дисциплінарної відповідальності працівників органів за документами прокурора (з питань слідства та ОРД) (таб.4+6) | D36: внутрішніх справ | E36: 28 | F36: 0 | G36: 0 | H36: 0 | I36: =Довідки1!H36 -> -16.2
D37: фіскальної служби | E37: 29 | F37: 0 | G37: 0 | H37: 0 | I37: =Довідки1!H37 -> -37.5
D38: служби безпеки | E38: 30 | F38: 0 | G38: 0 | H38: 0 | I38: =Довідки1!H38 -> -50
A39: Повідомлено про підозру за направленими до суду кримінальними провадженнями працівникам органів (з питань слідства) (таб.4) | D39: внутрішніх справ | E39: 31 | H39: 0 | I39: =Довідки1!H39 -> 0
D40: фіскальної служби | E40: 32 | H40: 0 | I40: =Довідки1!H40 -> 0
D41: служби безпеки | E41: 33 | H41: 0 | I41: =Довідки1!H41 -> 0
A42: Перевірено ОРС | E42: 34 | H42: 0 | I42: =Довідки1!H42 -> -4.6
A43: Скасовано незаконних постанов з питань ОРД | E43: 35 | H43: 0 | I43: =Довідки1!H43 -> 10.9
A44: Розглянуто прокурором клопотань слідчих | D44: прокурором погоджено | E44: 36 | H44: 0 | I44: =Довідки1!H44 -> -9.9
D45: прокурором відмовлено | E45: 37 | H45: 0 | I45: =Довідки1!H45 -> 42.7
D46: питома вага | E46: 38 | F46: =IF((F44+F45)=0,0,F44*100/(F44+F45)) -> 0 | G46: =IF((G44+G45)=0,0,G44*100/(G44+G45)) -> 0 | I46: =Довідки1!G46 -> 88.91797557
A47: Внесено прокурором особисто | E47: 39 | H47: 0 | I47: =Довідки1!H47 -> 0
A48: Рішення суду за результатами розгляду клопотання прокурора або слідчого | D48: судом задоволено | E48: 40 | H48: 0 | I48: =Довідки1!H48 -> -2.7
D49: судом відмовлено | E49: 41 | H49: 0 | I49: =Довідки1!H49 -> -100,0
D50: питома вага | E50: 42 | F50: =IF((F48+F49)=0,0,F48*100/(F48+F49)) -> 0 | G50: =IF((G48+G49)=0,0,G48*100/(G48+G49)) -> 0 | I50: =Довідки1!G50 -> 100
A51: Прийнято прокурором рішень | E51: 43 | H51: 0 | I51: =Довідки1!H51 -> -13.1
A52: Прийнято прокурором самостійно рішень про проведення НСРД | E52: 44 | H52: 0 | I52: =Довідки1!H52 -> 29.9
A53: з них: | B53: з подальшим розсекреченням | E53: 45 | H53: 0 | I53: =Довідки1!H53 -> 32.6
A54: За рішенням прокурора | E54: 46 | H54: 0 | I54: =Довідки1!H54 -> -25.4
A55: Розглянуті апеляційні скарги прокурора на судові рішення з питань досудового розслідування | E55: 47 | F55: 0 | G55: 0 | H55: 0 | I55: =Довідки1!H55 -> -40
A56: з них: | B56: задоволено | E56: 48 | H56: 0 | I56: =Довідки1!H56 -> -20
B57: питома вага | E57: 49 | F57: =IF(F55=0,0,F56*100/F55) -> 0 | G57: =IF(G55=0,0,G56*100/G55) -> 0 | I57: =Довідки1!G57 -> 88.88888889
A58: Подано до суду клопотань | E58: 50 | H58: =IF(F58=0,0,IF(G58=0,"-100,0",IF(G58*100/F58<200,ROUND(G58*100/F58-100,1),ROUND(G58/F58,1)&" р"))) -> 0 | I58: =Довідки1!H58 -> 13.3
A59: Відкликано прокурором клопотань | E59: 51 | H59: 0 | I59: =Довідки1!H59 -> 0
A60: Відмовлено слідчим суддею у задоволенні клопотань | E60: 52 | H60: 0 | I60: =Довідки1!H60 -> 61.8
A61: Питома вага до відхилених | E61: 53 | F61: =IF(F58=0,0,F60*100/F58) -> 0 | G61: =IF(G58=0,0,G60*100/G58) -> 0 | I61: =Довідки1!G61 -> 8.59375
A62: Подано апел. скарг на ухвали слідчого судді про відмову в застосуванні запобіжного заходу | E62: 54 | H62: 0 | I62: =Довідки1!H62 -> -38.5
A63: Питома вага до внесених | E63: 55 | F63: =IF(F60=0,0,F62*100/F60) -> 0 | G63: =IF(G60=0,0,G62*100/G60) -> 0 | I63: =Довідки1!G63 -> 14.54545455
A64: Задоволено апеляційних скарг | E64: 56 | H64: =IF(F64=0,0,IF(G64=0,"-100,0",IF(G64*100/F64<200,ROUND(G64*100/F64-100,1),ROUND(G64/F64,1)&" р"))) -> 0 | I64: =Довідки1!H64 -> -50
A65: Питома вага до внесених | E65: 57 | F65: =IF(F62=0,0,F64*100/F62) -> 0 | G65: =IF(G62=0,0,G64*100/G62) -> 0 | I65: =Довідки1!G65 -> 37.5
A66: Участь прокурорів у судовому розгляді кримінальних проваджень та перегляді судових рішень
A67: Участь у розгляді справ судами (усього) | E67: 58 | F67: =J67+M67 -> 0 | G67: =K67+N67 -> 0 | H67: =IF(F67=0,0,IF(G67=0,"-100,0",IF(G67*100/F67<200,ROUND(G67*100/F67-100,1),ROUND(G67/F67,1)&" р"))) -> 0 | I67: =Довідки1!H67 -> -20 | J67: 0 | K67: 0 | M67: 0 | N67: 0 | P67: 0
A68: Участь у судовому розгляді проваджень судами І інстанції з ухваленням вироку | E68: 59 | H68: 0 | I68: =Довідки1!H68 -> 5.8
A69: у т.ч. | B69: з ухваленням вироку на підставі угоди | E69: 60 | H69: 0 | I69: =Довідки1!H69 -> -34.8 | J69: 0 | K69: 0
A70: У розгляді судом питань, пов’язаних з виконанням вироків | E70: 61 | H70: 0 | I70: =Довідки1!H70 -> -53.2 | J70: 0 | K70: 0
A71: Переглянуто вироків відносно осіб за апеляційними скаргами | E71: 62 | H71: 0 | I71: =Довідки1!H71 -> 52.8
A72: Відсоток апеляційної практики | E72: 63 | F72: =IF(J72=0,0,(F71-J69)*100/J72) -> 0 | G72: =IF(K72=0,0,(G71-K69)*100/K72) -> 0 | I72: =Довідки1!G72 -> 89.50276243 | J72: =F71+J71-J70-J69 -> 0 | K72: =G71+K71-K70-K69 -> 0
A73: Питома вага задоволених апеляцій | E73: 64 | F73: =IF(M73=0,0,M71*100/M73) -> 0 | G73: =IF(N73=0,0,N71*100/N73) -> 0 | I73: =Довідки1!G73 -> 77.14285714 | M73: =SUM(M71:M72) -> 0 | N73: =SUM(N71:N72) -> 0
A74: Нагляд за додержанням законів при виконанні судових рішень у кримінальних провадженнях
A75: Звільнено за ініціативою прокурора незаконно утримуваних осіб | E75: 65 | F75: 0 | G75: 0 | H75: =IF(F75=0,0,IF(G75=0,"-100,0",IF(G75*100/F75<200,ROUND(G75*100/F75-100,1),ROUND(G75/F75,1)&" р"))) -> 0 | I75: =Довідки1!H75 -> 0 | M75: 0 | N75: 0
A76: Розглянуто документів прокурора з вжиттям заходів щодо усунення порушень закону | E76: 66 | F76: 0 | G76: 0 | H76: 0 | I76: =Довідки1!H76 -> 17.9 | M76: 0 | N76: 0
A77: Притягнуто до дисциплінарної, адміністративної відповідальності працівників | E77: 67 | F77: 0 | G77: 0 | H77: 0 | I77: =Довідки1!H77 -> 5.1
A78: Розгляд звернень і висвітлення діяльності органів прокуратури
A79: Вирішено звернень | E79: 68 | H79: 0 | I79: =Довідки1!H79 -> 8.5
A80: з них: | B80: задоволено | E80: 69 | H80: 0 | I80: =Довідки1!H80 -> 13.4
B81: питома вага | E81: 70 | F81: =IF(F79=0,0,F80*100/F79) -> 0 | G81: =IF(G79=0,0,G80*100/G79) -> 0 | I81: =Довідки1!G81 -> 4.782526831
A82: Задоволено з тих, що раніше відхилялись підпорядкованими прокурорами | E82: 71 | H82: 0 | I82: =Довідки1!H82 -> 0
A83: Виступи в ЗМІ | E83: 72 | H83: =IF(F83=0,0,IF(G83=0,"-100,0",IF(G83*100/F83<200,ROUND(G83*100/F83-100,1),ROUND(G83/F83,1)&" р"))) -> 0 | I83: =Довідки1!H83 -> 16.1
A84: Розглянуто запитів | E84: 73 | H84: 0 | I84: =Довідки1!H84 -> 24.6
